Workbook

Sheet Előirá (hidden)
C1: FEJEZET | D1: (Több tétel) | F1: Surján Laci által küldött 01.31-i táblázat alapján
D3: Oszlopcímkék
D4: B | F4: K
C5: Sorcímkék | D5: Összeg / EREDETI_ELOIRANYZAT | E5: Összeg / AKTUALIS_ELOIRANYZAT | F5: Összeg / EREDETI_ELOIRANYZAT | G5: Összeg / AKTUALIS_ELOIRANYZAT | I5: Összeg / EREDETI_ELOIRANYZAT | J5: Összeg / AKTUALIS_ELOIRANYZAT | L5: 66/15/00/00/00 | M5: 366010
C6: 1099 | D6: 233903800000 | E6: 234550517400 | F6: -206037500000 | G6: -206684217400 | L6: 66/16/00/00/00 | M6: 366020
A7: 362215 | B7: =H7 -> 362215 | C7: 62/01/00/00/00 | F7: -49466400000 | G7: -49466400000 | H7: =VLOOKUP(C7,L:M,2,FALSE) -> 362215 | I7: =(D7+F7) -> -49466400000 | J7: =(E7+G7) -> -49466400000 | L7: 66/18/00/00/00 | M7: 366040
A8: 362225 | B8: =H8 -> 362225 | C8: 62/02/00/00/00 | F8: -65159200000 | G8: -65159200000 | H8: 362225 | I8: =(D8+F8) -> -65159200000 | J8: =(E8+G8) -> -65159200000 | L8: 66/01/00/00/00 | M8: 366210
A9: 362230 | B9: 362230 | C9: 62/03/00/00/00 | F9: -21177800000 | G9: -21177800000 | H9: 362230 | I9: -21177800000 | J9: -21177800000 | L9: 66/02/00/00/00 | M9: 366220
A10: 362240 | B10: =H10 -> 362240 | C10: 62/04/00/00/00 | F10: -2514300000 | G10: -2514300000 | H10: 362240 | I10: -2514300000 | J10: -2514300000 | L10: 66/03/00/00/00 | M10: 366230
A11: 362235 | B11: 362235 | C11: 62/09/00/00/00 | F11: -5629200000 | G11: -5629200000 | H11: 362235 | I11: -5629200000 | J11: -5629200000 | L11: 66/04/00/00/00 | M11: 366240
A12: 362010 | B12: 362010 | C12: 62/19/00/00/00 | D12: 91800000000 | E12: 91800000000 | H12: 362010 | I12: 91800000000 | J12: 91800000000 | L12: 66/05/00/00/00 | M12: 366250
A13: 362020 | B13: 362020 | C13: 62/20/00/00/00 | D13: 1000000000 | E13: 1000000000 | H13: 362020 | I13: 1000000000 | J13: 1000000000 | L13: 66/06/00/00/00 | M13: 366260
A14: 362030 | B14: 362030 | C14: 62/23/00/00/00 | D14: 38546600000 | E14: 38546600000 | H14: 362030 | I14: 38546600000 | J14: 38546600000 | L14: 66/07/00/00/00 | M14: 366270
A15: 365010 | B15: 365010 | C15: 65/02/03/00/00 | D15: 33830800000 | E15: 34477517400 | H15: 365010 | I15: 33830800000 | J15: 34477517400 | L15: 66/09/00/00/00 | M15: 366300
A16: 365215 | B16: 365215 | C16: 65/04/00/00/00 | F16: -25000000000 | G16: -26550000000 | H16: 365215 | I16: -25000000000 | J16: -26550000000 | L16: 62/19/00/00/00 | M16: 362010
A17: 365225 | B17: 365225 | C17: 65/05/00/00/00 | F17: -2283700000 | G17: -2931192400 | H17: 365225 | I17: -2283700000 | J17: -2931192400 | L17: 62/20/00/00/00 | M17: 362020
A18: 365270 | B18: 365270 | C18: 65/06/00/00/00 | F18: -1050000000 | G18: -1050000000 | H18: 365270 | I18: -1050000000 | J18: -1050000000 | L18: 62/23/00/00/00 | M18: 362030
A19: 365300 | B19: 365300 | C19: 65/08/00/00/00 | F19: -246600000 | G19: -246600000 | H19: 365300 | I19: -246600000 | J19: -246600000 | L19: 62/01/00/00/00 | M19: 362215
A20: 365320 | B20: 365320 | C20: 65/09/00/00/00 | F20: -5250500000 | G20: -3699725000 | H20: 365320 | I20: -5250500000 | J20: -3699725000 | L20: 62/02/00/00/00 | M20: 362225
A21: 366210 | B21: 366210 | C21: 66/01/00/00/00 | F21: -3152400000 | G21: -3152400000 | H21: 366210 | I21: -3152400000 | J21: -3152400000 | L21: 62/03/00/00/00 | M21: 362230
A22: 366220 | B22: 366220 | C22: 66/02/00/00/00 | F22: -1382900000 | G22: -1382900000 | H22: 366220 | I22: -1382900000 | J22: -1382900000 | L22: 62/09/00/00/00 | M22: 362235
A23: 366230 | B23: 366230 | C23: 66/03/00/00/00 | F23: -6034500000 | G23: -6034500000 | H23: 366230 | I23: -6034500000 | J23: -6034500000 | L23: 62/04/00/00/00 | M23: 362240
A24: 366240 | B24: 366240 | C24: 66/04/00/00/00 | F24: -66800000 | G24: -66800000 | H24: 366240 | I24: -66800000 | J24: -66800000 | L24: 67/06/00/00/00 | M24: 367010
A25: 366250 | B25: 366250 | C25: 66/05/00/00/00 | F25: -6151300000 | G25: -6151300000 | H25: 366250 | I25: -6151300000 | J25: -6151300000 | L25: 67/07/00/00/00 | M25: 367020
A26: 366260 | B26: 366260 | C26: 66/06/00/00/00 | F26: -1231600000 | G26: -1231600000 | H26: 366260 | I26: -1231600000 | J26: -1231600000 | L26: 67/09/00/00/00 | M26: 367040
A27: 366270 | B27: 366270 | C27: 66/07/00/00/00 | F27: -83500000 | G27: -83500000 | H27: 366270 | I27: -83500000 | J27: -83500000 | L27: 67/01/00/00/00 | M27: 367200
A28: 366300 | B28: 366300 | C28: 66/09/00/00/00 | F28: -54500000 | G28: -54500000 | H28: 366300 | I28: -54500000 | J28: -54500000 | L28: 67/02/00/00/00 | M28: 367300
A29: 366010 | B29: 366010 | C29: 66/15/00/00/00 | D29: 27017400000 | E29: 27017400000 | H29: 366010 | I29: 27017400000 | J29: 27017400000 | L29: 67/04/00/00/00 | M29: 367310
A30: 366020 | B30: 366020 | C30: 66/16/00/00/00 | D30: 7100000 | E30: 7100000 | H30: 366020 | I30: 7100000 | J30: 7100000 | L30: 47/04/08/00/00 | M30: 363010
A31: 366040 | B31: 366040 | C31: 66/18/00/00/00 | D31: 27801900000 | E31: 27801900000 | H31: 366040 | I31: 27801900000 | J31: 27801900000 | L31: 47/04/09/00/00 | M31: 363020
A32: 367200 | B32: 367200 | C32: 67/01/00/00/00 | F32: -8712100000 | G32: -8712100000 | H32: 367200 | I32: -8712100000 | J32: -8712100000 | L32: 47/04/10/00/00 | M32: 363030
A33: 367300 | B33: 367300 | C33: 67/02/00/00/00 | F33: -1145200000 | G33: -1145200000 | H33: 367300 | I33: -1145200000 | J33: -1145200000 | L33: 47/04/11/00/00 | M33: 363040
A34: 367310 | B34: 367310 | C34: 67/04/00/00/00 | F34: -245000000 | G34: -245000000 | H34: 367310 | I34: -245000000 | J34: -245000000 | L34: 47/04/12/00/00 | M34: 363050
A35: 367010 | B35: 367010 | C35: 67/06/00/00/00 | D35: 300000000 | E35: 300000000 | H35: 367010 | I35: 300000000 | J35: 300000000 | L35: 47/04/36/00/00 | M35: 363055
A36: 367020 | B36: 367020 | C36: 67/07/00/00/00 | D36: 12700000000 | E36: 12700000000 | H36: 367020 | I36: 12700000000 | J36: 12700000000 | L36: 47/04/01/00/00 | M36: 363211
A37: 367040 | B37: 367040 | C37: 67/09/00/00/00 | D37: 900000000 | E37: 900000000 | H37: 367040 | I37: 900000000 | J37: 900000000 | L37: 47/04/02/00/00 | M37: 363220
A38: 363211 | B38: 363211 | C38: 47/04/01/00/00 | F38: -21000000000 | G38: -14500000000 | H38: 363211 | I38: =(D38+F38) -> -21000000000 | J38: =(E38+G38) -> -14500000000 | L38: 47/04/03/00/00 | M38: 363230
A39: 363220 | B39: 363220 | C39: 47/04/02/00/00 | F39: -34654500000 | G39: -34654500000 | H39: 363220 | I39: -34654500000 | J39: -34654500000 | L39: 47/04/04/00/00 | M39: 363240
A40: 363230 | B40: =H40 -> 363230 | C40: 47/04/03/00/00 | F40: -105000000000 | G40: -105000000000 | H40: 363230 | I40: -105000000000 | J40: -105000000000 | L40: 47/04/05/00/00 | M40: 363250
A41: 363240 | B41: 363240 | C41: 47/04/04/00/00 | F41: -4000000000 | G41: -4000000000 | H41: 363240 | I41: -4000000000 | J41: -4000000000 | L41: 47/04/06/00/00 | M41: 363260
A42: 363250 | B42: 363250 | C42: 47/04/05/00/00 | F42: -1200000000 | G42: -1200000000 | H42: 363250 | I42: -1200000000 | J42: -1200000000 | L42: 47/04/07/00/00 | M42: 363270
A43: 363260 | B43: 363260 | C43: 47/04/06/00/00 | F43: -120000000000 | G43: -120000000000 | H43: 363260 | I43: -120000000000 | J43: -120000000000 | L43: 47/04/15/00/00 | M43: 363300
A44: 363220 | B44: 363270 | C44: 47/04/07/00/00 | F44: -85000000000 | G44: -85000000000 | H44: 363270 | I44: -85000000000 | J44: -85000000000 | L44: 65/02/03/00/00 | M44: 365010
B45: 363010 | C45: 47/04/08/00/00 | D45: 80000000000 | E45: 80000000000 | H45: 363010 | I45: 80000000000 | J45: 80000000000 | L45: 65/03/00/00/00 | M45: 365020
B46: 363020 | C46: 47/04/09/00/00 | D46: 3000000000 | E46: 3000000000 | H46: 363020 | I46: 3000000000 | J46: 3000000000 | L46: 65/04/00/00/00 | M46: 365215
B47: 363030 | C47: 47/04/10/00/00 | D47: 68700000000 | E47: 68700000000 | H47: 363030 | I47: 68700000000 | J47: 68700000000 | L47: 65/05/00/00/00 | M47: 365225
B48: 363040 | C48: 47/04/11/00/00 | D48: 400000000 | E48: 400000000 | H48: 363040 | I48: 400000000 | J48: 400000000 | L48: 65/06/00/00/00 | M48: 365270
B49: 363050 | C49: 47/04/12/00/00 | D49: 267500000000 | E49: 267500000000 | H49: 363050 | I49: 267500000000 | J49: 267500000000 | L49: 65/07/00/00/00 | M49: 365280
B50: 363300 | C50: 47/04/15/00/00 | F50: -1000000000 | G50: -1000000000 | H50: 363300 | I50: -1000000000 | J50: -1000000000 | L50: 65/08/00/00/00 | M50: 365300
B51: 363055 | C51: 47/04/36/00/00 | D51: 49800000000 | E51: 49800000000 | H51: 363055 | I51: 49800000000 | J51: 49800000000 | L51: 65/09/00/00/00 | M51: 365320

Sheet zászlók
C2: Kérem, válasszon nyelvet: | J2: Please, choose language:
C10: Ha a nyelv kiválasztása nem működik, próbálkozzon | J10: Please try to reduce the security level if you
C11: a lap biztonsági szintjének csökkentésével. | J11: have any problem with changing the language.
A20: 2

Sheet NFA-mérleg
B1: Magyar Államkincstár | J1: 5. Szám
C2: Nemzeti Foglalkoztatási Alap költségvetésének előzetes teljesítése | J2: J/a./NFA melléklet
J3: Millió Ft
A4: Hungarian State Treasury | J4: No. 5
C5: Preliminary Balance of National Employment Fund's Budget | J5: Appendix J/a./ NEF
J6: Million HUF
C7: 2025. | F7: 2026.
B8: Bevételek | C8: előzetes teljesítés | D8: teljesítés I-V. hó | E8: teljesítés %-a* | F8: törvényi előirányzat | G8: törvénnyel módosított előirányzat | H8: módosított előirányzat | I8: teljesítés I-V. hó | J8: teljesítés %-a*
A9: Revenues | C9: preliminary facts | D9: facts January-May | E9: facts in the % of the appropriation | F9: appropriation | G9: appropriation | H9: appropriation | I9: facts January-May | J9: facts in the % of the appropriation
A10: Revenues of Social Renewal Operational Programme (TÁMOP) measures | B10: Előfinanszírozott uniós programok kiadásainak visszatérülése | C10: 19002.8693 | D10: 404.959683 | E10: 2.131044932 | F10: 70000 | G10: 70000 | H10: 70000 | I10: 8979.569122 | J10: 12.82795589
A11: Other incomes | B11: Egyéb bevétel | C11: 6014.350056 | D11: 1770.295184 | E11: 29.43452189 | F11: 5000 | G11: 5000 | H11: 5000 | I11: 3974.844218 | J11: 79.49688436
A12: Redemption of wage guarantee subsidies | B12: Bérgarancia támogatás törlesztése | C12: 2216.743512 | D12: 1657.403751 | E12: 74.76750206 | F12: 400 | G12: 400 | H12: 400 | I12: 1807.078216 | J12: 451.769554
A13: Health insurance and labour market contribution entitled for Economy Protection Employment Fund | B13: Társadalombiztosítási járulék NFA-t megillető része | C13: 435949.3008 | D13: 179761.4059 | E13: 41.2344751 | F13: 476800 | G13: 476800 | H13: 476800 | I13: 199706.3463 | J13: 41.88472029
A14: Subtotal | B14: Költségvetési bevételek | C14: 463183.2637 | D14: 183594.0645 | E14: 39.63745647 | F14: 552200 | G14: 552200 | H14: 552200 | I14: 214467.8379 | J14: 38.83879716
A15: Financial income | B15: Finanszírozási bevételek | C15: 0 | D15: 0 | E15: - | F15: 0 | G15: 0 | H15: 0 | I15: 0 | J15: -
A16: Income of special settlements | B16: Sajátos elszámolások bevétele | C16: 279.785804 | D16: 219.336594 | E16: 78.39446851 | F16: 0 | G16: 0 | H16: 0 | I16: 134.400754 | J16: -
A17: Total revenues | B17: Bevételek összesen | C17: 463463.0495 | D17: 183813.4011 | E17: 39.66085351 | F17: 552200 | G17: 552200 | H17: 552200 | I17: 214602.2387 | J17: 38.8631363
J18: Millió Ft
J19: Million HUF
C20: 2025. | F20: 2026.
B21: Kiadások | C21: előzetes teljesítés | D21: teljesítés I-V. hó | E21: teljesítés %-a* | F21: törvényi előirányzat | G21: törvénnyel módosított előirányzat | H21: módosított előirányzat | I21: teljesítés I-V. hó | J21: teljesítés %-a*
A22: Expenditures | C22: preliminary facts | D22: facts January-May | E22: facts in the % of the appropriation | F22: appropriation | G22: appropriation | H22: appropriation | I22: facts January-May | J22: facts in the % of the appropriation
A23: Active subsidies | B23: Foglalkoztatási támogatások | C23: 24703.98494 | D23: 10545.12812 | E23: 42.68593971 | F23: 20000 | G23: 20000 | H23: 20000 | I23: 7342.972811 | J23: 36.71486405
A24: Subsidies to vocational training and adult education | B24: Szakképzési támogatások | C24: 62999.029 | D24: 19147.65452 | E24: 30.39357085 | F24: 70000 | G24: 70000 | H24: 70000 | I24: 23343.94061 | J24: 33.34848659
A25: Passive expenditures | B25: Passzív kiadások, álláskeresési támogatások | C25: 196433.6202 | D25: 69698.85077 | E25: 35.48213932 | F25: 222600 | G25: 222600 | H25: 222600 | I25: 75473.79596 | J25: 33.90556872
A26: Payment of wage guarantee subsidies | B26: Bérgarancia kifizetések | C26: 29284.04272 | D26: 11055.97394 | E26: 37.75426108 | F26: 4000 | G26: 4000 | H26: 4000 | I26: 2306.881627 | J26: 57.67204068
A27: Expenditures on operation purposes | B27: Működtetési célú kifizetések | C27: 1550.330382 | D27: 578.835211 | E27: 37.33624895 | F27: 1400 | G27: 1400 | H27: 1400 | I27: 564.54712 | J27: 40.32479429
A28: Start - working program | B28: Start-munkaprogram | C28: 134362.2078 | D28: 61103.98291 | E28: 45.47706077 | F28: 156000 | G28: 156000 | H28: 156000 | I28: 60463.66721 | J28: 38.75876103
A29: EU pre-financing and co-financing | B29: EU-s elő és társfinanszírozás | C29: 78275.11399 | D29: 22069.14025 | E29: 28.19432527 | F29: 83000 | G29: 83000 | H29: 83000 | I29: 22152.62243 | J29: 26.68990654
A30: Crisis subsidies | B30: Válsághelyzeti támogatás | C30: 238.734439 | D30: 92.751497 | E30: 38.85132677
A31: Subtotal | B31: Költségvetési kiadások | C31: 527847.0634 | D31: 194292.3172 | E31: 36.80844901 | F31: 557000 | G31: 557000 | H31: 557000 | I31: 191648.4278 | J31: 34.40725813
A32: Expenditure of special settlements | B32: Sajátos elszámolások kiadása | C32: 0 | D32: 0 | E32: - | F32: 0 | G32: 0 | H32: 0 | I32: 0 | J32: -
A33: Total expenditures | B33: Kiadások összesen | C33: 527847.0634 | D33: 194292.3172 | E33: 36.80844901 | F33: 557000 | G33: 557000 | H33: 557000 | I33: 191648.4278 | J33: 34.40725813
A35: Opening balance | B35: NFA számláinak nyitóegyenlege | C35: 330214.0896 | F35: 265830.0757 | G35: 265830.0757 | H35: 265830.0757
A36: Total revenues | B36: Bevételek összesen | C36: 463463.0495 | D36: 183813.4011 | E36: 39.66085351 | F36: 552200 | G36: 552200 | H36: 552200 | I36: 214602.2387 | J36: 38.8631363
A37: Total expenditures | B37: Kiadások összesen | C37: 527847.0634 | D37: 194292.3172 | E37: 36.80844901 | F37: 557000 | G37: 557000 | H37: 557000 | I37: 191648.4278 | J37: 34.40725813
A38: Net balance without credit | B38: NFA számláinak egyenlegváltozása | C38: -64384.01396 | D38: -10478.91611 | E38: - | F38: -4800 | G38: -4800 | H38: -4800 | I38: 22953.81088 | J38: -
A39: Closing balance | B39: NFA számláinak záróegyenlege | C39: 265830.0757 | D39: 319735.1735 | E39: - | F39: 261030.0757 | G39: 261030.0757 | H39: 261030.0757 | I39: 288783.8866 | J39: -
A41: * % of facts, preliminary facts of previous year=100, appropriation of current year (as in the law) =100 | B41: * a teljesítés %-a az előző évnél előzetes teljesítés=100, a tárgyévnél a törvényi előirányzat=100

Sheet NFA-havi
B1: Magyar Államkincstár | S1: 5. Szám
I2: A Nemzeti Foglalkoztatási Alap költségvetésének előzetes teljesítése | S2: J/b./NFA melléklet
S3: Millió Ft
A4: Hungarian State Treasury | S4: No. 5
H5: Preliminary Balance of National Employment Fund's Budget | S5: Appendix J/b./ NEF
S6: Million HUF
K7: 2026. | V7: 2026.
B8: Bevételek | C8: törvényi előirányzat | D8: törvénnyel módosított előirányzat | E8: módosított előirányzat | F8: I.hó | G8: II.hó | H8: III.hó | I8: IV.hó | J8: V.hó | K8: VI.hó | L8: VII.hó | M8: VIII.hó | N8: IX.hó | O8: X. hó | P8: XI.hó | Q8: XII. hó | R8: teljesítés I-V. hó | S8: teljesítés %-a | T8: I.n.év | U8: II.n.év | V8: III.n.év | W8: IV.n.év
A9: Revenues | C9: appropriation | D9: appropriation | E9: appropriation | F9: January | G9: February | H9: March | I9: April | J9: May | K9: June | L9: July | M9: August | N9: September | O9: October | P9: November | Q9: December | R9: facts January-May | S9: facts in the % of the appropriation | T9: 1st quarter | U9: 2nd quarter | V9: 3nd quarter | W9: 4th quarter
A10: Revenues of Social Renewal Operational Programme (TÁMOP) measures | B10: Előfinanszírozott uniós programok kiadásainak visszatérülése | C10: 70000 | D10: 70000 | E10: 70000 | F10: 1579.988291 | G10: 1228.468634 | H10: 5804.945983 | I10: 366.166214 | J10: 0 | R10: 8979.569122 | S10: 12.82795589 | T10: 8613.402908
A11: Other incomes | B11: Egyéb bevétel | C11: 5000 | D11: 5000 | E11: 5000 | F11: 156.231847 | G11: 1071.435705 | H11: 1525.237792 | I11: 445.889103 | J11: 776.049771 | R11: 3974.844218 | S11: 79.49688436 | T11: 2752.905344
A12: Redemption of wage guarantee subsidies | B12: Bérgarancia támogatás törlesztése | C12: 400 | D12: 400 | E12: 400 | F12: 19.716042 | G12: 1358.86288 | H12: 176.454753 | I12: 111.783129 | J12: 140.261412 | R12: 1807.078216 | S12: 451.769554 | T12: 1555.033675
A13: Health insurance and labour market contribution entitled for Economy Protection Employment Fund | B13: Társadalombiztosítási járulék NFA-t megillető része | C13: 476800 | D13: 476800 | E13: 476800 | F13: 42403.78629 | G13: 40855.53213 | H13: 36648.11412 | I13: 40397.98229 | J13: 39400.93151 | R13: 199706.3463 | S13: 41.88472029 | T13: 119907.4325
A14: Subtotal | B14: Költségvetési bevételek | C14: 552200 | D14: 552200 | E14: 552200 | F14: 44159.72247 | G14: 44514.29935 | H14: 44154.75265 | I14: 41321.82074 | J14: 40317.2427 | R14: 214467.8379 | S14: 38.83879716 | T14: 132828.7745
A15: Financial incomes | B15: Finanszírozási bevételek | C15: 0 | D15: 0 | E15: 0 | F15: 0 | G15: 0 | H15: 0 | I15: 0 | J15: 0 | R15: 0 | S15: - | T15: 0
A16: Income of special settlements | B16: Sajátos elszámolások bevétele | C16: 0 | D16: 0 | E16: 0 | F16: 222.575906 | G16: -159.308193 | H16: 8.599438 | I16: 51.83369 | J16: 10.699913 | R16: 134.400754 | S16: - | T16: 71.867151
A17: Total revenues | B17: Bevételek összesen | C17: 552200 | D17: 552200 | E17: 552200 | F17: 44382.29838 | G17: 44354.99116 | H17: 44163.35209 | I17: 41373.65443 | J17: 40327.94261 | R17: 214602.2387 | S17: 38.8631363 | T17: 132900.6416
S18: Millió Ft
S19: Million HUF
K20: 2026. | V20: 2026.
B21: Kiadások | C21: törvényi előirányzat | D21: törvénnyel módosított előirányzat | E21: módosított előirányzat | F21: I.hó | G21: II.hó | H21: III.hó | I21: IV.hó | J21: V.hó | K21: VI.hó | L21: VII.hó | M21: VIII.hó | N21: IX.hó | O21: X. hó | P21: XI.hó | Q21: XII. hó | R21: teljesítés I-V. hó | S21: teljesítés %-a | T21: I.n.év | U21: II.n.év | V21: III.n.év | W21: IV.n.év
A22: Expenditures | C22: appropriation | D22: appropriation | E22: appropriation | F22: January | G22: February | H22: March | I22: April | J22: May | K22: June | L22: July | M22: August | N22: September | O22: October | P22: November | Q22: December | R22: facts January-May | S22: facts in the % of the appropriation | T22: 1st quarter | U22: 2nd quarter | V22: 3nd quarter | W22: 4th quarter
A23: Subsidies to employment and training | B23: Foglalkoztatási támogatások | C23: 20000 | D23: 20000 | E23: 20000 | F23: 87.69722 | G23: 6557.014107 | H23: 234.27741 | I23: 214.886826 | J23: 249.097248 | R23: 7342.972811 | S23: 36.71486405 | T23: 6878.988737
A24: Subsidies to vocational training and adult education | B24: Szakképzési támogatások | C24: 70000 | D24: 70000 | E24: 70000 | F24: 5757.462533 | G24: 3857.500899 | H24: 7320.203179 | I24: 3680.877 | J24: 2727.897 | R24: 23343.94061 | S24: 33.34848659 | T24: 16935.16661
A25: Passive expenditures and unemployment benefit | B25: Passzív kiadások, álláskeresési támogatások | C25: 222600 | D25: 222600 | E25: 222600 | F25: 7972.222179 | G25: 15113.8775 | H25: 16623.79893 | I25: 17937.28225 | J25: 17826.61511 | R25: 75473.79596 | S25: 33.90556872 | T25: 39709.8986
A26: Payment of wage guarantee subsidies | B26: Bérgarancia kifizetések | C26: 4000 | D26: 4000 | E26: 4000 | F26: 282.831617 | G26: 291.322492 | H26: 444.743172 | I26: 589.54896 | J26: 698.435386 | R26: 2306.881627 | S26: 57.67204068 | T26: 1018.897281
A27: Expenditures on operation purposes | B27: Működtetési célú kifizetések | C27: 1400 | D27: 1400 | E27: 1400 | F27: 70.752721 | G27: 107.973014 | H27: 121.60258 | I27: 134.482963 | J27: 129.735842 | R27: 564.54712 | S27: 40.32479429 | T27: 300.328315
A28: Start-work programme | B28: Start-munkaprogram | C28: 156000 | D28: 156000 | E28: 156000 | F28: 8682.982867 | G28: 8680.478871 | H28: 18808.13975 | I28: 12209.22469 | J28: 12082.84104 | R28: 60463.66721 | S28: 38.75876103 | T28: 36171.60148
A29: EU pre-financing and co-financing | B29: EU-s elő és társfinanszírozás | C29: 83000 | D29: 83000 | E29: 83000 | F29: 2641.216396 | G29: 3529.873069 | H29: 4580.906337 | I29: 7235.92391 | J29: 4164.702717 | R29: 22152.62243 | S29: 26.68990654 | T29: 10751.9958
A30: Subtotal | B30: Költségvetési kiadások | C30: 557000 | D30: 557000 | E30: 557000 | F30: 25495.16553 | G30: 38138.03995 | H30: 48133.67135 | I30: 42002.22659 | J30: 37879.32435 | R30: 191648.4278 | S30: 34.40725813 | T30: 111766.8768
A31: Expenditure of special settlements | B31: Sajátos elszámolások kiadása | C31: 0 | D31: 0 | E31: 0 | F31: 0 | G31: 0 | H31: 0 | I31: 0 | J31: 0 | R31: 0 | S31: - | T31: 0
A32: Total expenditures | B32: Kiadások összesen | C32: 557000 | D32: 557000 | E32: 557000 | F32: 25495.16553 | G32: 38138.03995 | H32: 48133.67135 | I32: 42002.22659 | J32: 37879.32435 | R32: 191648.4278 | S32: 34.40725813 | T32: 111766.8768
A34: Total revenues | B34: Bevételek összesen | C34: 552200 | D34: 552200 | E34: 552200 | F34: 44382.29838 | G34: 44354.99116 | H34: 44163.35209 | I34: 41373.65443 | J34: 40327.94261 | R34: 214602.2387 | S34: 38.8631363 | T34: 132900.6416
A35: Total expenditures | B35: Kiadások összesen | C35: 557000 | D35: 557000 | E35: 557000 | F35: 25495.16553 | G35: 38138.03995 | H35: 48133.67135 | I35: 42002.22659 | J35: 37879.32435 | R35: 191648.4278 | S35: 34.40725813 | T35: 111766.8768
A36: Changes in the balance | B36: Egyenlegváltozás | C36: -4800 | D36: -4800 | E36: -4800 | F36: 18887.13285 | G36: 6216.951205 | H36: -3970.319262 | I36: -628.572165 | J36: 2448.618258 | R36: 22953.81088 | S36: - | T36: 21133.76479

Sheet NFA-teljarány
B1: Magyar Államkincstár | S1: 5. Szám
H2: A Nemzeti Foglalkoztatási Alap költségvetésének előzetes teljesítése az előirányzat százalékában | S2: J/b2./NFA melléklet
S3: %-ban
A4: Hungarian State Treasury | S4: No. 5
H5: Preliminary Balance of National Employment Fund's Budget in per cent of approval | S5: Appendix J/b2./NEF
S6: per cent
H7: 2026. | O7: kumulált | R7: 2026.
B8: Bevételek | C8: I. hó | D8: II.hó | E8: III.hó | F8: IV.hó | G8: V.hó | H8: VI.hó | I8: VII.hó | J8: VIII.hó | K8: IX.hó | L8: X. hó | M8: XI.hó | N8: XII.hó | O8: teljesítés %-a | P8: I.n.év | Q8: II.n.év | R8: III.n.év | S8: IV.n.év
A9: Revenues | C9: January | D9: February | E9: March | F9: April | G9: May | H9: June | I9: July | J9: August | K9: September | L9: October | M9: November | N9: December | O9: facts in the % of the appropriation | P9: 1st quarter | Q9: 2nd quarter | R9: 3nd quarter | S9: 4th quarter
A10: Revenues of Social Renewal Operational Programme (TÁMOP) measures | B10: Előfinanszírozott uniós programok kiadásainak visszatérülése | C10: 2.25712613 | D10: 1.754955191 | E10: 8.292779976 | F10: 0.5230945914 | G10: 0 | O10: 12.82795589 | P10: 12.3048613
A11: Other incomes | B11: Egyéb bevétel | C11: 3.12463694 | D11: 21.4287141 | E11: 30.50475584 | F11: 8.91778206 | G11: 15.52099542 | O11: 79.49688436 | P11: 55.05810688
A12: Redemption of wage guarantee subsidies | B12: Bérgarancia támogatás törlesztése | C12: 4.9290105 | D12: 339.71572 | E12: 44.11368825 | F12: 27.94578225 | G12: 35.065353 | O12: 451.769554 | P12: 388.7584187
A13: Health insurance and labour market contribution entitled for Economy Protection Employment Fund | B13: Társadalombiztosítási járulék NFA-t megillető része | C13: 8.893411555 | D13: 8.568693819 | E13: 7.686265546 | F13: 8.472731185 | G13: 8.263618186 | O13: 41.88472029 | P13: 25.14837092
A14: Subtotal | B14: Költségvetési bevételek | C14: 7.997052241 | D14: 8.061263917 | E14: 7.996152237 | F14: 7.483125812 | G14: 7.301202951 | O14: 38.83879716 | P14: 24.05446839
A15: Financial incomes | B15: Finanszírozási bevételek
A16: Income of special settlements | B16: Sajátos elszámolások bevétele
A17: Total revenues | B17: Bevételek összesen | C17: 8.037359359 | D17: 8.03241419 | E17: 7.997709542 | F17: 7.492512572 | G17: 7.303140639 | O17: 38.8631363 | P17: 24.06748309
S18: %-ban
S19: per cent
H20: 2026. | O20: kumulált | R20: 2026.
A21: Expenditures | B21: Kiadások | C21: I. hó | D21: II.hó | E21: III.hó | F21: IV.hó | G21: V.hó | H21: VI.hó | I21: VII.hó | J21: VIII.hó | K21: IX.hó | L21: X. hó | M21: XI.hó | N21: XII.hó | O21: teljesítés %-a | P21: I.n.év | Q21: II.n.év | R21: III.n.év | S21: IV.n.év
A22: Expenditures | C22: January | D22: February | E22: March | F22: April | G22: May | H22: June | I22: July | J22: August | K22: September | L22: October | M22: November | N22: December | O22: facts in the % of the appropriation | P22: 1st quarter | Q22: 2nd quarter | R22: 3nd quarter | S22: 4th quarter
A23: Subsidies to employment and training | B23: Foglalkoztatási támogatások | C23: 0.4384861 | D23: 32.78507054 | E23: 1.17138705 | F23: 1.07443413 | G23: 1.24548624 | O23: 36.71486405 | P23: 34.39494368
A24: Subsidies to vocational training and adult education | B24: Szakképzési támogatások | C24: 8.224946476 | D24: 5.51071557 | E24: 10.45743311 | F24: 5.258395714 | G24: 3.896995714 | O24: 33.34848659 | P24: 24.19309516
A25: Passive expenditures and unemployment benefit | B25: Passzív kiadások, álláskeresési támogatások | C25: 3.581411581 | D25: 6.78970238 | E25: 7.468013894 | F25: 8.058078278 | G25: 8.008362585 | O25: 33.90556872 | P25: 17.83912785
A26: Payment of wage guarantee subsidies | B26: Bérgarancia kifizetések | C26: 7.070790425 | D26: 7.2830623 | E26: 11.1185793 | F26: 14.738724 | G26: 17.46088465 | O26: 57.67204068 | P26: 25.47243203
A27: Expenditures on operation purposes | B27: Működtetési célú kifizetések | C27: 5.053765786 | D27: 7.712358143 | E27: 8.685898571 | F27: 9.605925929 | G27: 9.266845857 | O27: 40.32479429 | P27: 21.4520225
A28: Start-work programme | B28: Start-munkaprogram | C28: 5.566014658 | D28: 5.564409533 | E28: 12.05649984 | F28: 7.82642608 | G28: 7.745410926 | O28: 38.75876103 | P28: 23.18692403
A29: EU pre-financing and co-financing | B29: EU-s elő és társfinanszírozás | C29: 3.182188429 | D29: 4.252859119 | E29: 5.519164261 | F29: 8.717980614 | G29: 5.017714117 | O29: 26.68990654 | P29: 12.95421181
A30: Subtotal | B30: Költségvetési kiadások | C30: 4.577229001 | D30: 6.847044874 | E30: 8.641592702 | F30: 7.54079472 | G30: 6.800596831 | O30: 34.40725813 | P30: 20.06586658
A31: Expenditure of special settlements | B31: Sajátos elszámolások kiadása
A32: Total expenditures | B32: Kiadások összesen | C32: 4.577229001 | D32: 6.847044874 | E32: 8.641592702 | F32: 7.54079472 | G32: 6.800596831 | O32: 34.40725813 | P32: 20.06586658
A34: Total revenues | B34: Bevételek összesen | C34: 8.037359359 | D34: 8.03241419 | E34: 7.997709542 | F34: 7.492512572 | G34: 7.303140639 | O34: 38.8631363 | P34: 24.06748309
A35: Total expenditures | B35: Kiadások összesen | C35: 4.577229001 | D35: 6.847044874 | E35: 8.641592702 | F35: 7.54079472 | G35: 6.800596831 | O35: 34.40725813 | P35: 20.06586658

Sheet KNPA-mérleg
B1: Magyar Államkincstár | J1: 5. Szám
F2: A Központi Nukleáris Pénzügyi Alap költségvetésének előzetes teljesítése | J2: J/a./KNPA melléklet
J3: Millió Ft
A4: Hungarian State Treasury | J4: No. 5
C5: Preliminary Balance of Central Nuclear Financial Fund's Budget | J5: Appendix J/a./ KNPA
J6: Million HUF
D7: 2025. | F7: 2026.
B8: Bevételek | C8: előzetes teljesítés | D8: teljesítés I-V. hó | E8: teljesítés %-a* | F8: törvényi előirányzat | G8: törvénnyel módosított előirányzat | H8: módosított előirányzat | I8: teljesítés I-V. hó | J8: teljesítés %-a*
A9: Revenues | C9: preliminary facts | D9: facts January-May | E9: % of facts * | F9: appropriation | G9: appropriation | H9: appropriation | I9: facts January-May | J9: facts in the % of the appropriation
A10: Payments from nuclear institutions: Nuclear Power-station in Paks | B10: Nukleáris létesítmények befizetései | C10: 34188.1 | D10: 14245.04167 | E10: 41.66666666 | F10: 35580 | G10: 35580 | H10: 35580 | I10: 14825 | J10: 41.66666668
A11: Final and temporary placement of radioactive waste material | B11: Radioaktív hulladékok végleges, eseti elhelyezése | C11: 4.890091 | D11: 1.102475 | E11: 22.54508147 | F11: 3.1 | G11: 3.1 | H11: 3.1 | I11: 0.492765 | J11: 15.89564516
A12: Budgetary subsidy | B12: Költségvetési támogatás | C12: 42627.10962 | D12: 17761.29567 | E12: 41.66666667 | F12: 53974.7 | G12: 53974.7 | H12: 53974.7 | I12: 22366.96454 | J12: 41.43971999
A13: Other incomes | B13: Egyéb bevételek | C13: 8355.404407 | D13: 0.361429 | E13: 0.004325691282 | F13: 0 | G13: 0 | H13: 0 | I13: 0.238348 | J13: -
A14: Subtotal | B14: Költségvetési bevételek | C14: 85175.50411 | D14: 32007.80124 | E14: 37.57864609 | F14: 89557.8 | G14: 89557.8 | H14: 89557.8 | I14: 37192.69566 | J14: 41.52926452
A15: Financial incomes | B15: Finanszírozási bevételek | C15: 0 | D15: 0 | E15: - | F15: 0 | G15: 0 | H15: 0 | I15: 0 | J15: -
A16: Income of special settlements | B16: Sajátos elszámolások bevétele | C16: 0 | D16: 0 | E16: - | F16: 0 | G16: 0 | H16: 0 | I16: 0 | J16: -
A17: Total revenues | B17: Bevételek összesen | C17: 85175.50411 | D17: 32007.80124 | E17: 37.57864609 | F17: 89557.8 | G17: 89557.8 | H17: 89557.8 | I17: 37192.69566 | J17: 41.52926452
J18: Millió Ft
J19: Million HUF
D20: 2025. | F20: 2026.
B21: Kiadások | C21: előzetes teljesítés | D21: teljesítés I-V. hó | E21: teljesítés %-a* | F21: törvényi előirányzat | G21: törvénnyel módosított előirányzat | H21: módosított előirányzat | I21: teljesítés I-V. hó | J21: teljesítés %-a*
A22: Expenditures | C22: preliminary facts | D22: facts January-May | E22: % of facts * | F22: appropriation | G22: appropriation | H22: appropriation | I22: facts January-May | J22: facts in the % of the appropriation
A23: Development and investment expenditures | B23: Fejlesztési, beruházási célú kiadások | C23: 14472.9 | D23: 0 | E23: 0 | F23: 29680.4 | G23: 29680.4 | H23: 29180.09 | I23: 2354.238062 | J23: 8.06796025
A24: Money transfers | B24: Átadott pénzeszközök | C24: 11645.4 | D24: 6146.51224 | E24: 52.78060213 | F24: 12577.7 | G24: 12577.7 | H24: 12577.7 | I24: 6895.751512 | J24: 54.82521854
A25: Subtotal | B25: Költségvetési kiadások | C25: 26118.3 | D25: 6146.51224 | E25: 23.53335493 | F25: 42258.1 | G25: 42258.1 | H25: 41757.79 | I25: 9249.989574 | J25: 22.15153047
A26: Expenditure of special settlements | B26: Sajátos elszámolások kiadása | C26: 0 | D26: 0 | E26: - | F26: 0 | G26: 0 | H26: 0 | I26: 0 | J26: -
A27: Total expenditures | B27: Kiadások összesen | C27: 26118.3 | D27: 6146.51224 | E27: 23.53335493 | F27: 42258.1 | G27: 42258.1 | H27: 41757.79 | I27: 9249.989574 | J27: 22.15153047
A29: Opening balance | B29: KNPA számlájának nyitóegyenlege | C29: 693345.3496 | F29: 752402.5537 | G29: 752402.5537 | H29: 752402.5537
A30: Total revenues | B30: Bevételek összesen | C30: 85175.50411 | D30: 32007.80124 | E30: 37.57864609 | F30: 89557.8 | G30: 89557.8 | H30: 89557.8 | I30: 37192.69566 | J30: 41.52926452
A31: Total expenditures | B31: Kiadások összesen | C31: 26118.3 | D31: 6146.51224 | E31: 23.53335493 | F31: 42258.1 | G31: 42258.1 | H31: 41757.79 | I31: 9249.989574 | J31: 22.15153047
A32: Net balance without credit | B32: KNPA számlájának egyenlegváltozása | C32: 59057.20411 | D32: 25861.289 | E32: 43.79023591 | F32: 47299.7 | G32: 47299.7 | H32: 47800.01 | I32: 27942.70609 | J32: 58.45753189
A33: Closing balance | B33: KNPA számlájának záróegyenlege | C33: 752402.5537 | D33: 719206.6386 | E33: - | F33: 799702.2537 | G33: 799702.2537 | H33: 800202.5637 | I33: 780345.2598 | J33: -
A35: * % of facts, preliminary facts of previous year=100, appropriation of current year (as in the law) =100 | B35: * a teljesítés %-a az előző évnél előzetes teljesítés=100, a tárgyévnél a módosított előirányzat=100
A44: * % of facts, preliminary facts of previous year=100, appropriation of current year (as in the law) =100

Sheet KNPA-havi
B1: Magyar Államkincstár | S1: 5. Szám
H2: A Központi Nukleáris Pénzügyi Alap költségvetésének előzetes teljesítése | S2: J/b./KNPA melléklet
S3: Millió Ft
A4: Hungarian State Treasury | S4: No. 5
H5: Preliminary Balance of Central Nuclear Financial Fund's Budget | S5: Appendix J/b./ KNPA
S6: Million HUF
K7: 2026. | V7: 2026.
B8: Bevételek | C8: törvényi előirányzat | D8: törvénnyel módosított előirányzat | E8: módosított előirányzat | F8: I.hó | G8: II.hó | H8: III.hó | I8: IV.hó | J8: V.hó | K8: VI.hó | L8: VII.hó | M8: VIII.hó | N8: IX.hó | O8: X. hó | P8: XI.hó | Q8: XII. hó | R8: teljesítés I-V. hó | S8: teljesítés %-a | T8: I.n.év | U8: II.n.év | V8: III.n.év | W8: IV.n.év
A9: Revenues | C9: appropriation | D9: appropriation | E9: appropriation | F9: January | G9: February | H9: March | I9: April | J9: May | K9: June | L9: July | M9: August | N9: September | O9: October | P9: November | Q9: December | R9: facts January-May | S9: facts in the % of the appropriation | T9: 1st quarter | U9: 2nd quarter | V9: 3nd quarter | W9: 4th quarter
A10: Payments from nuclear institutions: Nuclear Power-station in Paks | B10: Nukleáris létesítmények bef.: MVM Paksi Atomerőmű Zrt. | C10: 35580 | D10: 35580 | E10: 35580 | F10: 2965.000001 | G10: 2965.000001 | H10: 2965.000001 | I10: 2965.000001 | J10: 2965.000001 | R10: 14825 | S10: 41.66666668 | T10: 8895.000003
A11: Final and temporary placement of radioactive waste material | B11: Radioaktív hulladékok végleges, eseti elhelyezése | C11: 3.1 | D11: 3.1 | E11: 3.1 | F11: 0.01098 | G11: 0.076 | H11: 0.06232 | I11: 0.33427 | J11: 0.009195 | R11: 0.492765 | S11: 15.89564516 | T11: 0.1493
A12: Budgetary subsidy | B12: Költségvetési támogatás | C12: 53974.7 | D12: 53974.7 | E12: 53974.7 | F12: 4473.392909 | G12: 4473.392909 | H12: 4473.392909 | I12: 4473.392909 | J12: 4473.392909 | R12: 22366.96454 | S12: 41.43971999 | T12: 13420.17873
A13: Other incomes | B13: Egyéb bevételek | C13: 0 | D13: 0 | E13: 0 | F13: 0 | G13: 0 | H13: 0.238348 | I13: 0 | J13: 0 | R13: 0.238348 | S13: - | T13: 0.238348
A14: Subtotal | B14: Költségvetési bevételek | C14: 89557.8 | D14: 89557.8 | E14: 89557.8 | F14: 7438.40389 | G14: 7438.46891 | H14: 7438.693578 | I14: 7438.72718 | J14: 7438.402105 | R14: 37192.69566 | S14: 41.52926452 | T14: 22315.56638
A15: Financial incomes | B15: Finanszírozási bevételek | C15: 0 | D15: 0 | E15: 0 | F15: 0 | G15: 0 | H15: 0 | I15: 0 | J15: 0 | R15: 0 | S15: - | T15: 0
A16: Income of special settlements | B16: Sajátos elszámolások bevétele | C16: 0 | D16: 0 | E16: 0 | F16: 0.074 | G16: 0.164348 | H16: -0.152698 | I16: -0.08565 | J16: 0 | R16: 0 | S16: - | T16: 0.08565
A17: Total revenues | B17: Bevételek összesen | C17: 89557.8 | D17: 89557.8 | E17: 89557.8 | F17: 7438.47789 | G17: 7438.633258 | H17: 7438.54088 | I17: 7438.64153 | J17: 7438.402105 | R17: 37192.69566 | S17: 41.52926452 | T17: 22315.65203
S18: Millió Ft
S19: Million HUF
K20: 2026. | V20: 2026.
B21: Kiadások | C21: törvényi előirányzat | D21: törvénnyel módosított előirányzat | E21: módosított előirányzat | F21: I.hó | G21: II.hó | H21: III.hó | I21: IV.hó | J21: V.hó | K21: VI.hó | L21: VII.hó | M21: VIII.hó | N21: IX.hó | O21: X. hó | P21: XI.hó | Q21: XII. hó | R21: teljesítés I-V. hó | S21: teljesítés %-a | T21: I.n.év | U21: II.n.év | V21: III.n.év | W21: IV.n.év
A22: Expenditures | C22: appropriation | D22: appropriation | E22: appropriation | F22: January | G22: February | H22: March | I22: April | J22: May | K22: June | L22: July | M22: August | N22: September | O22: October | P22: November | Q22: December | R22: facts January-May | S22: facts in the % of the appropriation | T22: 1st quarter | U22: 2nd quarter | V22: 3nd quarter | W22: 4th quarter
A23: Development and investment expenditures | B23: Fejlesztési, beruházási célú kiadások | C23: 29680.4 | D23: 29680.4 | E23: 29180.09 | F23: 0 | G23: 0 | H23: 0 | I23: 2354.238062 | J23: 0 | R23: 2354.238062 | S23: 8.06796025 | T23: 0
A24: Investment and development of storage place for waste material of low and medium radioactivity | B24: - Kis- és közepes akt. radioaktívhull. tár. beruh., fejlesztése | C24: 8896.5 | D24: 8896.5 | E24: 8896.5 | F24: 0 | G24: 0 | H24: 0 | I24: 1655.331076 | J24: 0 | R24: 1655.331076 | S24: 18.60654275 | T24: 0
A25: Selection of location of high radioactivity waste material storage place | B25: - Nagy aktivitású radioaktívhull. tár. telephely kiválasztása | C25: 1738.5 | D25: 1738.5 | E25: 1738.5 | F25: 0 | G25: 0 | H25: 0 | I25: 110.371054 | J25: 0 | R25: 110.371054 | S25: 6.348636986 | T25: 0
A26: Enlargement and renovation of temporary storage place of dead cells | B26: - Kiégett Kazetták Átmeneti Tárolójának bőv., felújítása | C26: 18909.8 | D26: 18909.8 | E26: 18409.49 | F26: 0 | G26: 0 | H26: 0 | I26: 554.635932 | J26: 0 | R26: 554.635932 | S26: 3.012771848 | T26: 0
A27: Preparation for decommissioning of nuclear facilities: PAKS NPP | B27: - Nukleáris létesítm. leszerelésének előkész.: Paksi Atomerőmű | C27: 135.6 | D27: 135.6 | E27: 135.6 | F27: 0 | G27: 0 | H27: 0 | I27: 33.9 | J27: 0 | R27: 33.9 | S27: 25 | T27: 0
A28: Money transfers | B28: Átadott pénzeszközök | C28: 12577.7 | D28: 12577.7 | E28: 12577.7 | F28: 0 | G28: 0 | H28: 5397.151512 | I28: 1498.6 | J28: 0 | R28: 6895.751512 | S28: 54.82521854 | T28: 5397.151512
A29: Operation costs of waste material storages and RHK Kft. | B29: - RHK Kft. műk., radioaktívhull. tár. és a KKÁT üzem. kiadásai | C29: 10995.6 | D29: 10995.6 | E29: 10995.6 | F29: 0 | G29: 0 | H29: 5397.151512 | I29: 0 | J29: 0 | R29: 5397.151512 | S29: 49.0846476 | T29: 5397.151512
A30: Subsidy for information services and social controls | B30: - Ellenőrzési és információs c. önk. társulások támogatása | C30: 1498.6 | D30: 1498.6 | E30: 1498.6 | F30: 0 | G30: 0 | H30: 0 | I30: 1498.6 | J30: 0 | R30: 1498.6 | S30: 100 | T30: 0
A31: For operational purposes of the Fund Management | B31: - Alapkezelőnek működési célra | C31: 83.5 | D31: 83.5 | E31: 83.5 | F31: 0 | G31: 0 | H31: 0 | I31: 0 | J31: 0 | R31: 0 | S31: 0 | T31: 0
A32: Subtotal | B32: Költségvetési kiadások | C32: 42258.1 | D32: 42258.1 | E32: 41757.79 | F32: 0 | G32: 0 | H32: 5397.151512 | I32: 3852.838062 | J32: 0 | R32: 9249.989574 | S32: 22.15153047 | T32: 5397.151512
A33: Expenditure of special settlements | B33: Sajátos elszámolások kiadása | C33: 0 | D33: 0 | E33: 0 | F33: 0 | G33: 0 | H33: 0 | I33: 0 | J33: 0 | R33: 0 | S33: - | T33: 0
A34: Total expenditures | B34: Kiadások összesen | C34: 42258.1 | D34: 42258.1 | E34: 41757.79 | F34: 0 | G34: 0 | H34: 5397.151512 | I34: 3852.838062 | J34: 0 | R34: 9249.989574 | S34: 22.15153047 | T34: 5397.151512
A36: Total revenues | B36: Bevételek összesen | C36: 89557.8 | D36: 89557.8 | E36: 89557.8 | F36: 7438.47789 | G36: 7438.633258 | H36: 7438.54088 | I36: 7438.64153 | J36: 7438.402105 | R36: 37192.69566 | S36: 41.52926452 | T36: 22315.65203
A37: Total expenditures | B37: Kiadások összesen | C37: 42258.1 | D37: 42258.1 | E37: 41757.79 | F37: 0 | G37: 0 | H37: 5397.151512 | I37: 3852.838062 | J37: 0 | R37: 9249.989574 | S37: 22.15153047 | T37: 5397.151512
A38: Changes in the balance | B38: Egyenlegváltozás | C38: 47299.7 | D38: 47299.7 | E38: 47800.01 | F38: 7438.47789 | G38: 7438.633258 | H38: 2041.389368 | I38: 3585.803468 | J38: 7438.402105 | R38: 27942.70609 | S38: 58.45753189 | T38: 16918.50052

Sheet KNPA-teljarány
B1: Magyar Államkincstár | S1: 5. Szám
H2: A Központi Nukleáris Pénzügyi Alap költségvetésének előzetes teljesítése az előirányzat százalékában | S2: J/b2./KNPA melléklet
S3: %-ban
A4: Hungarian State Treasury | S4: No. 5
H5: Preliminary Balance of Central Nuclear Financial Fund's Budget in per cent of approval | S5: Appendix J/b2./KNPA
S6: per cent
H7: 2026. | O7: kumulált | R7: 2026.
B8: Bevételek | C8: I. hó | D8: II.hó | E8: III.hó | F8: IV.hó | G8: V.hó | H8: VI.hó | I8: VII.hó | J8: VIII.hó | K8: IX.hó | L8: X. hó | M8: XI.hó | N8: XII.hó | O8: teljesítés %-a | P8: I.n.év | Q8: II.n.év | R8: III.n.év | S8: IV.n.év
A9: Revenues | C9: January | D9: February | E9: March | F9: April | G9: May | H9: June | I9: July | J9: August | K9: September | L9: October | M9: November | N9: December | O9: facts in the % of the appropriation | P9: 1st quarter | Q9: 2nd quarter | R9: 3nd quarter | S9: 4th quarter
A10: Payments from nuclear institutions: Nuclear Power-station in Paks | B10: Nukleáris létesítmények bef.: MVM Paksi Atomerőmű Zrt. | C10: 8.333333336 | D10: 8.333333336 | E10: 8.333333336 | F10: 8.333333336 | G10: 8.333333336 | O10: 41.66666668 | P10: 25.00000001
A11: Final and temporary placement of radioactive waste material | B11: Radioaktív hulladékok végleges, eseti elhelyezése | C11: 0.3541935484 | D11: 2.451612903 | E11: 2.010322581 | F11: 10.78290323 | G11: 0.2966129032 | O11: 15.89564516 | P11: 4.816129032
A12: Budgetary subsidy | B12: Költségvetési támogatás | C12: 8.287943998 | D12: 8.287943998 | E12: 8.287943998 | F12: 8.287943998 | G12: 8.287943998 | O12: 41.43971999 | P12: 24.86383199
A13: Other incomes | B13: Egyéb bevételek
A14: Subtotal | B14: Költségvetési bevételek | C14: 8.305701893 | D14: 8.305774494 | E14: 8.306025358 | F14: 8.306062878 | G14: 8.3056999 | O14: 41.52926452 | P14: 24.91750175
A15: Financial incomes | B15: Finanszírozási bevételek
A16: Income of special settlements | B16: Sajátos elszámolások bevétele
A17: Total revenues | B17: Bevételek összesen | C17: 8.305701893 | D17: 8.305958005 | E17: 8.305854856 | F17: 8.305967241 | G17: 8.3056999 | O17: 41.52926452 | P17: 24.91759738
S18: %-ban
S19: per cent
H20: 2026. | O20: kumulált | R20: 2026.
B21: Kiadások | C21: I. hó | D21: II.hó | E21: III.hó | F21: IV.hó | G21: V.hó | H21: VI.hó | I21: VII.hó | J21: VIII.hó | K21: IX.hó | L21: X. hó | M21: XI.hó | N21: XII.hó | O21: teljesítés %-a | P21: I.n.év | Q21: II.n.év | R21: III.n.év | S21: IV.n.év
A22: Expenditures | C22: January | D22: February | E22: March | F22: April | G22: May | H22: June | I22: July | J22: August | K22: September | L22: October | M22: November | N22: December | O22: facts in the % of the appropriation | P22: 1st quarter | Q22: 2nd quarter | R22: 3nd quarter | S22: 4th quarter
A23: Development and investment expenditures | B23: Fejlesztési, beruházási célú kiadások | C23: 0 | D23: 0 | E23: 0 | F23: 8.06796025 | G23: 0 | O23: 8.06796025 | P23: 0
A24: Investment and development of storage place for waste material of low and medium radioactivity | B24: - Kis- és közepes akt. radioaktívhull. tár. beruh., fejlesztése | C24: 0 | D24: 0 | E24: 0 | F24: 18.60654275 | G24: 0 | O24: 18.60654275 | P24: 0
A25: Selection of location of high radioactivity waste material storage place | B25: - Nagy aktivitású radioaktívhull. tár. telephely kiválasztása | C25: 0 | D25: 0 | E25: 0 | F25: 6.348636986 | G25: 0 | O25: 6.348636986 | P25: 0
A26: Enlargement and renovation of temporary storage place of dead cells | B26: - Kiégett Kazetták Átmeneti Tárolójának bőv., felújítása | C26: 0 | D26: 0 | E26: 0 | F26: 3.012771848 | G26: 0 | O26: 3.012771848 | P26: 0
A27: Preparation for decommissioning of nuclear facilities: PAKS NPP | B27: - Nukleáris létesítm. leszerelésének előkész.: Paksi Atomerőmű | C27: 0 | D27: 0 | E27: 0 | F27: 25 | G27: 0 | O27: 25 | P27: 0
A28: Money transfers | B28: Átadott pénzeszközök | C28: 0 | D28: 0 | E28: 42.91048055 | F28: 11.91473799 | G28: 0 | O28: 54.82521854 | P28: 42.91048055
A29: Operation costs of waste material storages and RHK Kft. | B29: - RHK Kft. műk., radioaktívhull. tár. és a KKÁT üzem. kiad. | C29: 0 | D29: 0 | E29: 49.0846476 | F29: 0 | G29: 0 | O29: 49.0846476 | P29: 49.0846476
A30: Subsidy for information services and social controls | B30: - Ellenőrzési és információs c. önk. társulások támogatása | C30: 0 | D30: 0 | E30: 0 | F30: 100 | G30: 0 | O30: 100 | P30: 0
A31: For operational purposes of the Fund Management | B31: - Alapkezelőnek működési célra | C31: 0 | D31: 0 | E31: 0 | F31: 0 | G31: 0 | O31: 0 | P31: 0
A32: Subtotal | B32: Költségvetési kiadások | C32: 0 | D32: 0 | E32: 12.9248974 | F32: 9.226633071 | G32: 0 | O32: 22.15153047 | P32: 12.9248974
A33: Expenditure of special settlements | B33: Sajátos elszámolások kiadása
A34: Total expenditures | B34: Kiadások összesen | C34: 0 | D34: 0 | E34: 12.9248974 | F34: 9.226633071 | G34: 0 | O34: 22.15153047 | P34: 12.9248974
A36: Total revenues | B36: Bevételek összesen | C36: 8.305784521 | D36: 8.305958005 | E36: 8.305854856 | F36: 8.305967241 | G36: 8.3056999 | O36: 41.52926452 | P36: 24.91759738
A37: Total expenditures | B37: Kiadások összesen | C37: 0 | D37: 0 | E37: 12.9248974 | F37: 9.226633071 | G37: 0 | O37: 22.15153047 | P37: 12.9248974

Sheet NKFIA-mérleg
B1: Magyar Államkincstár | J1: 5. Szám
F2: A Nemzeti Kutatási, Fejlesztési és Innovációs Alap költségvetésének előzetes teljesítése | J2: J/a./NKFIA melléklet
J3: Millió Ft
A4: Hungarian State Treasury | J4: No. 5
C5: Preliminary Balance of | J5: Appendix J/a./ KTIA
C6: National Research, Development and Innovation Fund's Budget | J6: Million HUF
D7: 2025. | H7: 2026.
B8: Bevételek | C8: előzetes teljesítés | D8: teljesítés I-V. hó | E8: teljesítés %-a* | F8: törvényi előirányzat | G8: törvénnyel módosított előirányzat | H8: módosított előirányzat | I8: teljesítés I-V. hó | J8: teljesítés %-a*
A9: Revenues | C9: preliminary facts | D9: facts January-May | E9: % of facts * | F9: appropriation | G9: appropriation | H9: appropriation | I9: facts January-May | J9: % of facts *
A10: Contribution for innovation | B10: Innovációs járulék | C10: 171144.1139 | D10: 70802.88486 | E10: 41.37033009 | F10: 177200 | G10: 177200 | H10: 177200 | I10: 75535.54721 | J10: 42.62728398
A11: Other revenues | B11: Egyéb bevételek | C11: 3535.856771 | D11: 662.014909 | E11: 18.72289948 | F11: 1000 | G11: 1000 | H11: 1000 | I11: 1133.173324 | J11: 113.3173324
A12: Subtotal | B12: Költségvetési bevételek | C12: 174679.9707 | D12: 71464.89977 | E12: 40.91190277 | F12: 178200 | G12: 178200 | H12: 178200 | I12: 76668.72053 | J12: 43.02397336
A13: Financial income | B13: Finanszírozási bevételek | C13: 0 | D13: 0 | E13: - | F13: 0 | G13: 0 | H13: 0 | I13: 0 | J13: -
A14: Incomes of special settlements | B14: Sajátos elszámolások bevétele | C14: 106.513229 | D14: 179.368892 | E14: 168.4005768 | F14: 0 | G14: 0 | H14: 0 | I14: -12.561194 | J14: -
A15: Total revenues | B15: Bevételek összesen | C15: 174786.4839 | D15: 71644.26866 | E15: 40.98959316 | F15: 178200 | G15: 178200 | H15: 178200 | I15: 76656.15934 | J15: 43.01692443
J16: Millió Ft
J17: Million HUF
D18: 2025. | H18: 2026.
B19: Kiadások | C19: előzetes teljesítés | D19: teljesítés I-V. hó | E19: teljesítés %-a* | F19: törvényi előirányzat | G19: törvénnyel módosított előirányzat | H19: módosított előirányzat | I19: teljesítés I-V. hó | J19: teljesítés %-a*
A20: Expenditures | C20: preliminary facts | D20: facts January-May | E20: % of facts * | F20: appropriation | G20: appropriation | H20: appropriation | I20: facts January-May | J20: % of facts *
A21: Cost of Research Fund | B21: Kutatási Alaprész | C21: 41197.40644 | D21: 17797.36294 | E21: 43.20020234 | F21: 40047.7 | G21: 40047.7 | H21: 38643.31779 | I21: 19904.13912 | J21: 51.50732458
A22: Cost of Innovation Fund | B22: Innovációs Alaprész | C22: 74221.41604 | D22: 10520.56336 | E22: 14.17456568 | F22: 55531.2 | G22: 55531.2 | H22: 56935.58221 | I22: 31322.39285 | J22: 55.01373945
A23: Payments to the central budget | B23: Befizetés a központi költségvetésbe | C23: 32192.2 | D23: 16096.1 | E23: 50 | F23: 32192.2 | G23: 32192.2 | H23: 32192.2 | I23: 16096.1 | J23: 50
A24: Money transfers to fund management | B24: Alapkezelőnek átadott pénzeszköz | C24: 6166.2 | D24: 6166.2 | E24: 100 | F24: 6416 | G24: 6416 | H24: 6416 | I24: 6416 | J24: 100
A25: Cost of Missions | B25: Missziók Alaprész | C25: 8036.431335 | D25: 347.10041 | E25: 4.319086365 | F25: 11012.9 | G25: 11012.9 | H25: 11012.9 | I25: 37.1961 | J25: 0.3377502747
A26: Subtotal | B26: Költségvetési kiadások | C26: 161813.6538 | D26: 50927.32671 | E26: 31.47282415 | F26: 145200 | G26: 145200 | H26: 145200 | I26: 73775.82808 | J26: 50.80979895
A27: Expenditures of special settlements | B27: Sajátos elszámolások kiadása | C27: 0 | D27: 0 | E27: - | F27: 0 | G27: 0 | H27: 0 | I27: 0 | J27: -
A28: Total expenditures | B28: Kiadások összesen | C28: 161813.6538 | D28: 50927.32671 | E28: 31.47282415 | F28: 145200 | G28: 145200 | H28: 145200 | I28: 73775.82808 | J28: 50.80979895
A30: Opening balance | B30: NKFIA számlájának nyitóegyenlege | C30: 169601.3611 | F30: 182574.1912 | G30: 182574.1912 | H30: 182574.1912
A31: Total revenues | B31: Bevételek összesen | C31: 174786.4839 | D31: 71644.26866 | E31: 40.98959316 | F31: 178200 | G31: 178200 | H31: 178200 | I31: 76656.15934 | J31: 43.01692443
A32: Total expenditures | B32: Kiadások összesen | C32: 161813.6538 | D32: 50927.32671 | E32: 31.47282415 | F32: 145200 | G32: 145200 | H32: 145200 | I32: 73775.82808 | J32: 50.80979895
A33: Net balance | B33: NKFIA számlájának egyenlegváltozása | C33: 12972.83011 | D33: 20716.94194 | E33: 159.6948528 | F33: 33000 | G33: 33000 | H33: 33000 | I33: 2880.331264 | J33: 8.728276558
A34: Closing balance | B34: NKFIA számlájának záróegyenlege | C34: 182574.1912 | D34: 190318.303 | E34: - | F34: 215574.1912 | G34: 215574.1912 | H34: 215574.1912 | I34: 185454.5225 | J34: -
A36: * % of facts, preliminary facts of previous year=100, appropriation of current year (as in the law) =100 | B36: * a teljesítés %-a az előző évnél előzetes teljesítés=100, a tárgyévnél a módosított előirányzat=100

Sheet NKFIA-havi
B1: Magyar Államkincstár | D1: elrejteni | S1: 5. Szám
H2: A Nemzeti Kutatási, Fejlesztési és Innovációs Alap költségvetésének előzetes teljesítése | S2: J/b./NKFIA melléklet
S3: Millió Ft
A4: Hungarian State Treasury | S4: No. 5
H5: Preliminary Balance of National Research, Development and Innovation Fund's Budget | S5: Appendix J/b./ KTIA
S6: Million HUF
K7: 2026. | V7: 2026.
B8: Bevételek | C8: törvényi előirányzat | D8: törvénnyel módosított előirányzat | E8: módosított előirányzat | F8: I.hó | G8: II.hó | H8: III.hó | I8: IV.hó | J8: V.hó | K8: VI.hó | L8: VII.hó | M8: VIII.hó | N8: IX.hó | O8: X. hó | P8: XI.hó | Q8: XII. hó | R8: teljesítés I-V. hó | S8: teljesítés %-a | T8: I.n.év | U8: II.n.év | V8: III.n.év | W8: IV.n.év
A9: Revenues | C9: appropriation | D9: appropriation | E9: appropriation | F9: January | G9: February | H9: March | I9: April | J9: May | K9: June | L9: July | M9: August | N9: September | O9: October | P9: November | Q9: December | R9: facts January-May | S9: facts in the % of the appropriation | T9: 1st quarter | U9: 2nd quarter | V9: 3nd quarter | W9: 4th quarter
A10: Contribution for innovation | B10: Innovációs járulék | C10: 177200 | D10: 177200 | E10: 177200 | F10: 30595.87709 | G10: 4885.498281 | H10: 2234.864297 | I10: 32780.60891 | J10: 5038.698633 | R10: 75535.54721 | S10: 42.62728398 | T10: 37716.23967
A11: Other incomes | B11: Egyéb bevételek | C11: 1000 | D11: 1000 | E11: 1000 | F11: 147.78076 | G11: 48.733468 | H11: 34.18916 | I11: 876.575811 | J11: 25.894125 | R11: 1133.173324 | S11: 113.3173324 | T11: 230.703388
A12: Subtotal | B12: Költségvetési bevételek | C12: 178200 | D12: 178200 | E12: 178200 | F12: 30743.65785 | G12: 4934.231749 | H12: 2269.053457 | I12: 33657.18472 | J12: 5064.592758 | R12: 76668.72053 | S12: 43.02397336 | T12: 37946.94306
A13: Financial income | B13: Finanszírozási bevételek | C13: 0 | D13: 0 | E13: 0 | F13: 0 | G13: 0 | H13: 0 | I13: 0 | J13: 0 | R13: 0 | S13: - | T13: 0
A14: Incomes of special settlements | B14: Sajátos elszámolások bevétele | C14: 0 | D14: 0 | E14: 0 | F14: 0.040248 | G14: -5.022474 | H14: 30.213738 | I14: -38.170013 | J14: 0.377307 | R14: -12.561194 | S14: - | T14: 25.231512
A15: Total revenues | B15: Bevételek összesen | C15: 178200 | D15: 178200 | E15: 178200 | F15: 30743.6981 | G15: 4929.209275 | H15: 2299.267195 | I15: 33619.01471 | J15: 5064.970065 | R15: 76656.15934 | S15: 43.01692443 | T15: 37972.17457
S16: Millió Ft
S17: Million HUF
K18: 2026. | V18: 2026.
B19: Kiadások | C19: törvényi előirányzat | D19: törvénnyel módosított előirányzat | E19: módosított előirányzat | F19: I.hó | G19: II.hó | H19: III.hó | I19: IV.hó | J19: V.hó | K19: VI.hó | L19: VII.hó | M19: VIII.hó | N19: IX.hó | O19: X. hó | P19: XI.hó | Q19: XII. hó | R19: teljesítés I-V. hó | S19: teljesítés %-a | T19: I.n.év | U19: II.n.év | V19: III.n.év | W19: IV.n.év
A20: Expenditures | C20: appropriation | D20: appropriation | E20: appropriation | F20: January | G20: February | H20: March | I20: April | J20: May | K20: June | L20: July | M20: August | N20: September | O20: October | P20: November | Q20: December | R20: facts January-May | S20: facts in the % of the appropriation | T20: 1st quarter | U20: 2nd quarter | V20: 3nd quarter | W20: 4th quarter
A21: Cost of Research Fund | B21: Kutatási Alaprész | C21: 40047.7 | D21: 40047.7 | E21: 38643.31779 | F21: 2823.82397 | G21: 5601.071017 | H21: 10167.56514 | I21: 1101.678998 | J21: 210 | R21: 19904.13912 | S21: 51.50732458 | T21: 18592.46013
A22: Cost of Innovation Fund | B22: Innovációs Alaprész | C22: 55531.2 | D22: 55531.2 | E22: 56935.58221 | F22: 10546.44827 | G22: 8620.680698 | H22: 6973.89643 | I22: 4854.626476 | J22: 326.74098 | R22: 31322.39285 | S22: 55.01373945 | T22: 26141.0254
A23: Payments to the central budget | B23: Befizetés a központi költségvetésbe | C23: 32192.2 | D23: 32192.2 | E23: 32192.2 | F23: 8048.05 | G23: 0 | H23: 0 | I23: 8048.05 | J23: 0 | R23: 16096.1 | S23: 50 | T23: 8048.05
A24: Money transfers to fund management | B24: Alapkezelőnek átadott pénzeszköz | C24: 6416 | D24: 6416 | E24: 6416 | F24: 6416 | G24: 0 | H24: 0 | I24: 0 | J24: 0 | R24: 6416 | S24: 100 | T24: 6416
A25: Cost of Missions | B25: Missziók Alaprész | C25: 11012.9 | D25: 11012.9 | E25: 11012.9 | F25: 37.1961 | G25: 0 | H25: 0 | I25: 0 | J25: 0 | R25: 37.1961 | S25: 0.3377502747 | T25: 37.1961
A26: Subtotal | B26: Költségvetési kiadások | C26: 145200 | D26: 145200 | E26: 145200 | F26: 27871.51834 | G26: 14221.75171 | H26: 17141.46157 | I26: 14004.35547 | J26: 536.74098 | R26: 73775.82808 | S26: 50.80979895 | T26: 59234.73162
A27: Expenditures of special arrangements | B27: Sajátos elszámolások kiadása | C27: 0 | D27: 0 | E27: 0 | F27: 0 | G27: 0 | H27: 0 | I27: 0 | J27: 0 | R27: 0 | S27: - | T27: 0
A28: Total expenditures | B28: Kiadások összesen | C28: 145200 | D28: 145200 | E28: 145200 | F28: 27871.51834 | G28: 14221.75171 | H28: 17141.46157 | I28: 14004.35547 | J28: 536.74098 | R28: 73775.82808 | S28: 50.80979895 | T28: 59234.73162
A30: Total revenues | B30: Bevételek összesen | C30: 178200 | D30: 178200 | E30: 178200 | F30: 30743.6981 | G30: 4929.209275 | H30: 2299.267195 | I30: 33619.01471 | J30: 5064.970065 | R30: 76656.15934 | S30: 43.01692443 | T30: 37972.17457
A31: Total expenditures | B31: Kiadások összesen | C31: 145200 | D31: 145200 | E31: 145200 | F31: 27871.51834 | G31: 14221.75171 | H31: 17141.46157 | I31: 14004.35547 | J31: 536.74098 | R31: 73775.82808 | S31: 50.80979895 | T31: 59234.73162
A32: Net balance | B32: Egyenlegváltozás | C32: 33000 | D32: 33000 | E32: 33000 | F32: 2872.179758 | G32: -9292.54244 | H32: -14842.19437 | I32: 19614.65923 | J32: 4528.229085 | R32: 2880.331264 | S32: 8.728276558 | T32: -21262.55706

Sheet NKFIA-teljarány
B1: Magyar Államkincstár | S1: 5. Szám
H2: A Nemzeti Kutatási, Fejlesztési és Innovációs Alap költségvetésének előzetes teljesítése az előirányzat százalékában | S2: J/b2./NKFIA melléklet
S3: %-ban
A4: Hungarian State Treasury | S4: No. 5
H5: Preliminary Balance of National Research, Development and Innovation Fund's Budget in per cent of approval | S5: Appendix J/b2./KTIA
S6: per cent
H7: 2026. | O7: kumulált | R7: 2026.
B8: Bevételek | C8: I.hó | D8: II.hó | E8: III.hó | F8: IV.hó | G8: V.hó | H8: VI.hó | I8: VII.hó | J8: VIII.hó | K8: IX.hó | L8: X. hó | M8: XI.hó | N8: XII. hó | O8: teljesítés %-a | P8: I.n.év | Q8: II.n.év | R8: III.n.év | S8: IV.n.év
A9: Revenues | C9: January | D9: February | E9: March | F9: April | G9: May | H9: June | I9: July | J9: August | K9: September | L9: October | M9: November | N9: December | O9: facts in the % of the appropriation | P9: 1st quarter | Q9: 2nd quarter | R9: 3nd quarter | S9: 4th quarter
A10: Contribution for innovation | B10: Innovációs járulék | C10: 17.26629633 | D10: 2.757053206 | E10: 1.2612101 | F10: 18.49921496 | G10: 2.843509387 | O10: 42.62728398 | P10: 21.28455963
A11: Other incomes | B11: Egyéb bevételek | C11: 14.778076 | D11: 4.8733468 | E11: 3.418916 | F11: 87.6575811 | G11: 2.5894125 | O11: 113.3173324 | P11: 23.0703388
A12: Subtotal | B12: Költségvetési bevételek | C12: 17.25233325 | D12: 2.768929152 | E12: 1.273318438 | F12: 18.88730905 | G12: 2.842083478 | O12: 43.02397336 | P12: 21.29458084
A13: Financial income | B13: Finanszírozási bevételek
A14: Incomes of special settlements | B14: Sajátos elszámolások bevétele
A15: Total revenues | B15: Bevételek összesen | C15: 17.25235583 | D15: 2.766110704 | E15: 1.290273398 | F15: 18.86588929 | G15: 2.84229521 | O15: 43.01692443 | P15: 21.30873994
S16: %-ban
S17: per cent
H18: 2026. | O18: kumulált | R18: 2026.
B19: Kiadások | C19: I.hó | D19: II.hó | E19: III.hó | F19: IV.hó | G19: V.hó | H19: VI.hó | I19: VII.hó | J19: VIII.hó | K19: IX.hó | L19: X. hó | M19: XI.hó | N19: XII. hó | O19: teljesítés %-a | P19: I.n.év | Q19: II.n.év | R19: III.n.év | S19: IV.n.év
A20: Expenditures | C20: January | D20: February | E20: March | F20: April | G20: May | H20: June | I20: July | J20: August | K20: September | L20: October | M20: November | N20: December | O20: facts in the % of the appropriation | P20: 1st quarter | Q20: 2nd quarter | R20: 3nd quarter | S20: 4th quarter
A21: Cost of Research Fund | B21: Kutatási Alaprész | C21: 7.307405605 | D21: 14.49428087 | E21: 26.31131518 | F21: 2.850891334 | G21: 0.5434315996 | O21: 51.50732458 | P21: 48.11300165
A22: Cost of Innovation Fund | B22: Innovációs Alaprész | C22: 18.52347488 | D22: 15.14111275 | E22: 12.24874878 | F22: 8.526524692 | G22: 0.5738783504 | O22: 55.01373945 | P22: 45.91333641
A23: Payments to the central budget | B23: Befizetés a központi költségvetésbe | C23: 25 | D23: 0 | E23: 0 | F23: 25 | G23: 0 | O23: 50 | P23: 25
A24: Money transfers to fund management | B24: Alapkezelőnek átadott pénzeszköz | C24: 100 | D24: 0 | E24: 0 | F24: 0 | G24: 0 | O24: 100 | P24: 100
A25: Cost of Missions | B25: Missziók Alaprész | C25: 0.3377502747 | D25: 0 | E25: 0 | F25: 0 | G25: 0 | O25: 0.3377502747 | P25: 0.3377502747
A26: Subtotal | B26: Költségvetési kiadások | C26: 19.19526056 | D26: 9.794594845 | E26: 11.8054143 | F26: 9.644872916 | G26: 0.3696563223 | O26: 50.80979895 | P26: 40.79526971
A27: Expenditures of special arrangements | B27: Sajátos elszámolások kiadása
A28: Total expenditures | B28: Kiadások összesen | C28: 19.19526056 | D28: 9.794594845 | E28: 11.8054143 | F28: 9.644872916 | G28: 0.3696563223 | O28: 50.80979895 | P28: 40.79526971
A30: Total revenues | B30: Bevételek összesen | C30: 17.25235583 | D30: 2.766110704 | E30: 1.290273398 | F30: 18.86588929 | G30: 2.84229521 | O30: 43.01692443 | P30: 21.30873994
A31: Total expenditures | B31: Kiadások összesen | C31: 19.19526056 | D31: 9.794594845 | E31: 11.8054143 | F31: 9.644872916 | G31: 0.3696563223 | O31: 50.80979895 | P31: 40.79526971

Sheet NKA-mérleg
B1: Magyar Államkincstár | J1: 5. Szám
C2: Nemzeti Kulturális Alap költségvetésének előzetes teljesítése | J2: J/a./NKA melléklet
J3: Millió Ft
A4: Hungarian State Treasury | J4: No. 5
C5: Preliminary Balance of National Cultural Fund's Budget | J5: Appendix J/a./ NKA
J6: Million HUF
D7: 2025. | H7: 2026.
B8: Bevételek | C8: előzetes teljesítés | D8: teljesítés I-V. hó | E8: teljesítés %-a* | F8: törvényi előirányzat | G8: törvénnyel módosított előirányzat | H8: módosított előirányzat | I8: teljesítés I-V. hó | J8: teljesítés %-a *
A9: Revenues | C9: preliminary facts | D9: facts January-May | E9: % of facts * | F9: appropriation | G9: appropriation | H9: appropriation | I9: facts January-May | J9: % of facts *
A10: Other incomes | B10: Egyéb bevételek | C10: 2205.051548 | D10: 1404.38623 | E10: 63.68949657 | F10: 300 | G10: 300 | H10: 316.376809 | I10: 324.52457 | J10: 102.5753345
A11: Gamble tax entitled to NCF | B11: Játékadó NKA-t megillető része | C11: 13146.7374 | D11: 5607.4914 | E11: 42.65310266 | F11: 16390 | G11: 16390 | H11: 16390 | I11: 6958.0359 | J11: 42.45293411
A12: Payments required by the law on copyright | B12: Szerzői jogi törvény alapján a közös jogkez. származó befiz. | C12: 3342.388729 | D12: 232.391071 | E12: 6.952843904 | F12: 2600 | G12: 2600 | H12: 2600 | I12: 722.211257 | J12: 27.77735604
A13: Subtotal | B13: Költségvetési bevételek | C13: 18694.17768 | D13: 7244.268701 | E13: 38.75147025 | F13: 19290 | G13: 19290 | H13: 19306.37681 | I13: 8004.771727 | J13: 41.46180201
A14: Financial income | B14: Finanszírozási bevételek | C14: 0 | D14: 0 | E14: - | F14: 0 | G14: 0 | H14: 4434.886266 | I14: 0 | J14: 0
A15: Incomes of special settlements | B15: Sajátos elszámolások bevétele | C15: 16.077463 | D15: 1.300639 | E15: 8.089827356 | F15: 0 | G15: 0 | H15: 0 | I15: 146.122149 | J15: -
A16: Total revenues | B16: Bevételek összesen | C16: 18710.25514 | D16: 7245.56934 | E16: 38.72512313 | F16: 19290 | G16: 19290 | H16: 23741.26308 | I16: 8150.893876 | J16: 34.33218296
J17: Millió Ft
J18: Million HUF
D19: 2025. | H19: 2026.
B20: Kiadások | C20: előzetes teljesítés | D20: teljesítés I-V. hó | E20: teljesítés %-a* | F20: törvényi előirányzat | G20: törvénnyel módosított előirányzat | H20: módosított előirányzat | I20: teljesítés I-V. hó | J20: teljesítés %-a *
A21: Expenditures | C21: preliminary facts | D21: facts January-May | E21: % of facts * | F21: appropriation | G21: appropriation | H21: appropriation | I21: facts January-May | J21: % of facts *
A22: Subsidy to the creation, care, spreading of national and universal values | B22: Alapból nyújtott támogatások | C22: 17513.74329 | D22: 2122.940404 | E22: 12.12156858 | F22: 17614.6 | G22: 17614.6 | H22: 21627.68627 | I22: 11899.21977 | J22: 55.01845932
A23: Operational expenditures | B23: Működési kiadások | C23: 1585.552042 | D23: 612.377365 | E23: 38.62234407 | F23: 1470.2 | G23: 1470.2 | H23: 1836.576809 | I23: 969.108975 | J23: 52.76713559
A24: Subsidies for central organisations with cultural purposes | B24: Kulturális célú kp. kv.-i szervek működési kiadásainak tám. | C24: 133.4 | D24: 0 | E24: 0 | F24: 205.2 | G24: 205.2 | H24: 277 | I24: 71.8 | J24: 25.92057762
A25: Subtotal | B25: Költségvetési kiadások | C25: 19232.69533 | D25: 2735.317769 | E25: 14.22222794 | F25: 19290 | G25: 19290 | H25: 23741.26307 | I25: 12940.12875 | J25: 54.50480333
A26: Incomes of special settlements | B26: Sajátos elszámolások kiadása | C26: 0.0068 | D26: 0 | E26: 0 | F26: 0 | G26: 0 | H26: 0 | I26: 0 | J26: -
A27: Total expenditures | B27: Kiadások összesen | C27: 19232.70213 | D27: 2735.317769 | E27: 14.22222291 | F27: 19290 | G27: 19290 | H27: 23741.26307 | I27: 12940.12875 | J27: 54.50480333
A29: Opening balance | B29: NKA számlájának nyitóegyenlege | C29: 15325.08147 | F29: 14802.63448 | G29: 14802.63448 | H29: 14802.63448
A30: Total revenues | B30: Bevételek összesen | C30: 18710.25514 | D30: 7245.56934 | E30: 38.72512313 | F30: 19290 | G30: 19290 | H30: 23741.26308 | I30: 8150.893876 | J30: 34.33218296
A31: Total expenditures | B31: Kiadások összesen | C31: 19232.70213 | D31: 2735.317769 | E31: 14.22222291 | F31: 19290 | G31: 19290 | H31: 23741.26307 | I31: 12940.12875 | J31: 54.50480333
A32: Net balance | B32: NKA számlájának egyenlegváltozása | C32: -522.446994 | D32: 4510.251571 | E32: - | F32: 0 | G32: 0 | H32: 0 | I32: -4789.23487 | J32: -
A33: Closing balance | B33: NKA számlájának záróegyenlege | C33: 14802.63448 | D33: 19835.33304 | E33: - | F33: 14802.63448 | G33: 14802.63448 | H33: 14802.63448 | I33: 10013.39961 | J33: -
A35: * % of facts, preliminary facts of previous year=100, appropriation of current year =100 | B35: * a teljesítés %-a az előző évnél előzetes teljesítés=100, a tárgyévnél a módosított előirányzat=100

Sheet NKA-havi
B1: Magyar Államkincstár | S1: 5. Szám
H2: A Nemzeti Kulturális Alap költségvetésének előzetes teljesítése | S2: J/b./NKA melléklet
S3: Millió Ft
A4: Hungarian State Treasury | S4: No. 5
F5: Preliminary Balance of National Cultural Fund's Budget | S5: Appendix J/b./ NKA
S6: Million HUF
K7: 2026. | V7: 2026.
B8: Bevételek | C8: törvényi előirányzat | D8: törvénnyel módosított előirányzat | E8: módosított előirányzat | F8: I.hó | G8: II.hó | H8: III.hó | I8: IV.hó | J8: V.hó | K8: VI.hó | L8: VII.hó | M8: VIII.hó | N8: IX.hó | O8: X. hó | P8: XI.hó | Q8: XII. hó | R8: teljesítés I-V. hó | S8: teljesítés %-a | T8: I.n.év | U8: II.n.év | V8: III.n.év | W8: IV.n.év
A9: Revenues | C9: appropriation | D9: appropriation | E9: appropriation | F9: January | G9: February | H9: March | I9: April | J9: May | K9: June | L9: July | M9: August | N9: September | O9: October | P9: November | Q9: December | R9: facts January-May | S9: facts in the % of the appropriation | T9: 1st quarter | U9: 2nd quarter | V9: 3nd quarter | W9: 4th quarter
A10: Other incomes | B10: Egyéb bevételek | C10: 300 | D10: 300 | E10: 316.376809 | F10: -0.028774 | G10: 18.022637 | H10: 18.724926 | I10: 97.015468 | J10: 190.790313 | R10: 324.52457 | S10: 102.5753345 | T10: 36.718789
A11: Gamble tax entitled to NCF | B11: Játékadó NKA-t megillető része | C11: 16390 | D11: 16390 | E11: 16390 | F11: 736.1136 | G11: 0 | H11: 3469.1013 | I11: 1455.5457 | J11: 1297.2753 | R11: 6958.0359 | S11: 42.45293411 | T11: 4205.2149
A12: Payments required by the law on copyright | B12: Szerzői jogi törvény alapján a közös jogkez. származó befiz. | C12: 2600 | D12: 2600 | E12: 2600 | F12: 0 | G12: 0 | H12: 0 | I12: 0 | J12: 722.211257 | R12: 722.211257 | S12: 27.77735604 | T12: 0
A13: Subtotal | B13: Költségvetési bevételek | C13: 19290 | D13: 19290 | E13: 19306.37681 | F13: 736.084826 | G13: 18.022637 | H13: 3487.826226 | I13: 1552.561168 | J13: 2210.27687 | R13: 8004.771727 | S13: 41.46180201 | T13: 4241.933689
A14: Financial income | B14: Finanszírozási bevételek | C14: 0 | D14: 0 | E14: 4434.886266 | F14: 0 | G14: 0 | H14: 0 | I14: 0 | J14: 0 | R14: 0 | S14: 0 | T14: 0
A15: Incomes of special settlements | B15: Sajátos elszámolások bevétele | C15: 0 | D15: 0 | E15: 0 | F15: 2.154721 | G15: -1.654721 | H15: 2.000378 | I15: 51.978263 | J15: 91.643508 | R15: 146.122149 | S15: - | T15: 2.500378
A16: Total revenues | B16: Bevételek összesen | C16: 19290 | D16: 19290 | E16: 23741.26308 | F16: 738.239547 | G16: 16.367916 | H16: 3489.826604 | I16: 1604.539431 | J16: 2301.920378 | R16: 8150.893876 | S16: 34.33218296 | T16: 4244.434067
S17: Millió Ft
S18: Million HUF
K19: 2026. | V19: 2026.
B20: Kiadások | C20: törvényi előirányzat | D20: törvénnyel módosított előirányzat | E20: módosított előirányzat | F20: I.hó | G20: II.hó | H20: III.hó | I20: IV.hó | J20: V.hó | K20: VI.hó | L20: VII.hó | M20: VIII.hó | N20: IX.hó | O20: X. hó | P20: XI.hó | Q20: XII. hó | R20: teljesítés I-V. hó | S20: teljesítés %-a | T20: I.n.év | U20: II.n.év | V20: III.n.év | W20: IV.n.év
A21: Expenditures | C21: appropriation | D21: appropriation | E21: appropriation | F21: January | G21: February | H21: March | I21: April | J21: May | K21: June | L21: July | M21: August | N21: September | O21: October | P21: November | Q21: December | R21: facts January-May | S21: facts in the % of the appropriation | T21: 1st quarter | U21: 2nd quarter | V21: 3nd quarter | W21: 4th quarter
A22: Subsidy to the creation, care, spreading of national and universal values | B22: Alapból nyújtott támogatások | C22: 17614.6 | D22: 17614.6 | E22: 21627.68627 | F22: 493.81069 | G22: 5947.939971 | H22: 3198.230329 | I22: 2685.282082 | J22: -426.043301 | R22: 11899.21977 | S22: 55.01845932 | T22: 9639.98099
A23: Operational expenditures | B23: Működési kiadások | C23: 1470.2 | D23: 1470.2 | E23: 1836.576809 | F23: 124.600552 | G23: 122.079524 | H23: 125.418126 | I23: 473.652919 | J23: 123.357854 | R23: 969.108975 | S23: 52.76713559 | T23: 372.098202
A24: Subsidies for central organisations with cultural purposes | B24: Kulturális célú kp. kv.-i szervek működési kiadásainak tám. | C24: 205.2 | D24: 205.2 | E24: 277 | F24: 71.8 | G24: 0 | H24: 0 | I24: 0 | J24: 0 | R24: 71.8 | S24: 25.92057762 | T24: 71.8
A25: Subtotal | B25: Költségvetési kiadások | C25: 19290 | D25: 19290 | E25: 23741.26307 | F25: 690.211242 | G25: 6070.019495 | H25: 3323.648455 | I25: 3158.935001 | J25: -302.685447 | R25: 12940.12875 | S25: 54.50480333 | T25: 10083.87919
A26: Expenditures of special settlements | B26: Sajátos elszámolások kiadása | C26: 0 | D26: 0 | E26: 0 | F26: 0 | G26: 0 | H26: 0 | I26: 0 | J26: 0 | R26: 0 | S26: - | T26: 0
A27: Total expenditures | B27: Kiadások összesen | C27: 19290 | D27: 19290 | E27: 23741.26307 | F27: 690.211242 | G27: 6070.019495 | H27: 3323.648455 | I27: 3158.935001 | J27: -302.685447 | R27: 12940.12875 | S27: 54.50480333 | T27: 10083.87919
A29: Total revenues | B29: Bevételek összesen | C29: 19290 | D29: 19290 | E29: 23741.26308 | F29: 738.239547 | G29: 16.367916 | H29: 3489.826604 | I29: 1604.539431 | J29: 2301.920378 | R29: 8150.893876 | S29: 34.33218296 | T29: 4244.434067
A30: Total expenditures | B30: Kiadások összesen | C30: 19290 | D30: 19290 | E30: 23741.26307 | F30: 690.211242 | G30: 6070.019495 | H30: 3323.648455 | I30: 3158.935001 | J30: -302.685447 | R30: 12940.12875 | S30: 54.50480333 | T30: 10083.87919
A31: Net balance | B31: Egyenlegváltozás | C31: 0 | D31: 0 | E31: 0 | F31: 48.028305 | G31: -6053.651579 | H31: 166.178149 | I31: -1554.39557 | J31: 2604.605825 | R31: -4789.23487 | S31: - | T31: -5839.445125

Sheet NKA-teljarány
B1: Magyar Államkincstár | S1: 5. Szám
H2: A Nemzeti Kulturális Alap költségvetésének előzetes teljesítése az előirányzat százalékában | S2: J/b2./NKA melléklet
S3: %-ban
A4: Hungarian State Treasury | S4: No. 5
H5: Preliminary Balance of National Cultural Fund's Budget in per cent of approval | S5: Appendix J/b2./NKA
S6: per cent
H7: 2026. | O7: kumulált | R7: 2026.
B8: Bevételek | C8: I.hó | D8: II.hó | E8: III.hó | F8: IV.hó | G8: V.hó | H8: VI.hó | I8: VII.hó | J8: VIII.hó | K8: IX.hó | L8: X. hó | M8: XI.hó | N8: XII. hó | O8: teljesítés %-a | P8: I.n.év | Q8: II.n.év | R8: III.n.év | S8: IV.n.év
A9: Revenues | C9: January | D9: February | E9: March | F9: April | G9: May | H9: June | I9: July | J9: August | K9: September | L9: October | M9: November | N9: December | O9: facts in the % of the appropriation | P9: 1st quarter | Q9: 2nd quarter | R9: 3nd quarter | S9: 4th quarter
A10: Other incomes | B10: Egyéb bevételek | C10: -0.009094851197 | D10: 5.696573354 | E10: 5.918552014 | F10: 30.66453205 | G10: 60.3047719 | O10: 102.5753345 | P10: 11.60603052
A11: Gamble tax entitled to NCF | B11: Játékadó NKA-t megillető része | C11: 4.49123612 | D11: 0 | E11: 21.16596278 | F11: 8.880693716 | G11: 7.915041489 | O11: 42.45293411 | P11: 25.6571989
A12: Payments required by the law on copyright | B12: Szerzői jogi törvény alapján a közös jogkez. származó befiz. | C12: 0 | D12: 0 | E12: 0 | F12: 0 | G12: 27.77735604 | O12: 27.77735604 | P12: 0
A13: Subtotal | B13: Költségvetési bevételek | C13: 3.812651298 | D13: 0.09335069536 | E13: 18.0656695 | F13: 8.041701368 | G13: 11.44842915 | O13: 41.46180201 | P13: 21.97167149
A14: Financial income | B14: Finanszírozási bevételek | C14: 0 | D14: 0 | E14: 0 | F14: 0 | G14: 0 | O14: 0 | P14: 0
A15: Incomes of special settlements | B15: Sajátos elszámolások bevétele
A16: Total revenues | B16: Bevételek összesen | C16: 3.109520941 | D16: 0.06894290311 | E16: 14.69941423 | F16: 6.75844173 | G16: 9.695863151 | O16: 34.33218296 | P16: 17.87787808
S17: %-ban
S18: per cent
H19: 2026. | O19: kumulált | R19: 2026.
B20: Kiadások | C20: I.hó | D20: II.hó | E20: III.hó | F20: IV.hó | G20: V.hó | H20: VI.hó | I20: VII.hó | J20: VIII.hó | K20: IX.hó | L20: X. hó | M20: XI.hó | N20: XII. hó | O20: teljesítés %-a | P20: I.n.év | Q20: II.n.év | R20: III.n.év | S20: IV.n.év
A21: Expenditures | C21: January | D21: February | E21: March | F21: April | G21: May | H21: June | I21: July | J21: August | K21: September | L21: October | M21: November | N21: December | O21: facts in the % of the appropriation | P21: 1st quarter | Q21: 2nd quarter | R21: 3nd quarter | S21: 4th quarter
A22: Subsidy to the creation, care, spreading of national and universal values | B22: Alapból nyújtott támogatások | C22: 2.283234017 | D22: 27.50150847 | E22: 14.78766748 | F22: 12.41594708 | G22: -1.969897731 | O22: 55.01845932 | P22: 44.57240997
A23: Operational expenditures | B23: Működési kiadások | C23: 6.784391014 | D23: 6.647123246 | E23: 6.828907203 | F23: 25.78998693 | G23: 6.716727196 | O23: 52.76713559 | P23: 20.26042146
A24: Subsidies for central organisations with cultural purposes | B24: Kulturális célú kp. kv.-i szervek működési kiadásainak tám. | C24: 25.92057762 | D24: 0 | E24: 0 | F24: 0 | G24: 0 | O24: 25.92057762 | P24: 25.92057762
A25: Subtotal | B25: Költségvetési kiadások | C25: 2.907222079 | D25: 25.56738231 | E25: 13.99945927 | F25: 13.30567372 | G25: -1.274934051 | O25: 54.50480333 | P25: 42.47406366
A26: Expenditures of special settlements | B26: Sajátos elszámolások kiadása
A27: Total expenditures | B27: Kiadások összesen | C27: 2.907222079 | D27: 25.56738231 | E27: 13.99945927 | F27: 13.30567372 | G27: -1.274934051 | O27: 54.50480333 | P27: 42.47406366
A29: Total revenues | B29: Bevételek összesen | C29: 3.109520941 | D29: 0.06894290311 | E29: 14.69941423 | F29: 6.75844173 | G29: 9.695863151 | O29: 34.33218296 | P29: 17.87787808
A30: Total expenditures | B30: Kiadások összesen | C30: 2.907222079 | D30: 25.56738231 | E30: 13.99945927 | F30: 13.30567372 | G30: -1.274934051 | O30: 54.50480333 | P30: 42.47406366

Sheet BGA-mérleg
B1: Magyar Államkincstár | J1: 5. Szám
B2: A Bethlen Gábor Alap költségvetésének előzetes teljesítése | J2: J/a./BGA melléklet
J3: Millió Ft
A4: Hungarian State Treasury | J4: No. 5
C5: Preliminary Balance of Bethlen Gábor Fund's Budget | J5: Appendix J/a./ BGA
J6: Million HUF
D7: 2025. | H7: 2026.
B8: Bevételek | C8: előzetes teljesítés | D8: teljesítés I-V. hó | E8: teljesítés %-a* | F8: törvényi előirányzat | G8: törvénnyel módosított előirányzat | H8: módosított előirányzat | I8: teljesítés I-V. hó | J8: teljesítés %-a*
A9: Revenues | C9: appropriation | D9: facts January-May | E9: % of facts * | F9: appropriation | G9: appropriation | H9: appropriation | I9: facts January-May | J9: % of facts *
A10: Budgetary subsidy | B10: Költségvetési támogatás | C10: 92588.81685 | D10: 43312.36517 | E10: 46.77926194 | F10: 79088.4 | G10: 79088.4 | H10: 82183.08852 | I10: 60322.68355 | J10: 73.40036087
A11: Other income | B11: Egyéb bevétel | C11: 3426.061303 | D11: 2366.175354 | E11: 69.06401097 | F11: 0 | G11: 0 | H11: 3402.716485 | I11: 3404.878345 | J11: 100.0635334
A12: Subtotal | B12: Költségvetési bevételek | C12: 96014.87815 | D12: 45678.54052 | E12: 47.57443992 | F12: 79088.4 | G12: 79088.4 | H12: 85585.80501 | I12: 63727.56189 | J12: 74.46043405
A13: Financial incomes | B13: Finanszírozási bevételek | C13: 0 | D13: 0 | E13: - | F13: 0 | G13: 0 | H13: 0 | I13: 0 | J13: -
A14: Income of special settlements | B14: Sajátos elszámolások bevétele | C14: 15.004284 | D14: 26.339415 | E14: 175.5459641 | F14: 0 | G14: 0 | H14: 0 | I14: 34.197334 | J14: -
A15: Total revenues | B15: Bevételek összesen | C15: 96029.88244 | D15: 45704.87994 | E15: 47.59443496 | F15: 79088.4 | G15: 79088.4 | H15: 85585.80501 | I15: 63761.75923 | J15: 74.50039083
J16: Millió Ft
J17: Million HUF
D18: 2025. | H18: 2026.
B19: Kiadások | C19: előzetes teljesítés | D19: teljesítés I-V. hó | E19: teljesítés %-a* | F19: törvényi előirányzat | G19: törvénnyel módosított előirányzat | H19: módosított előirányzat | I19: teljesítés I-V. hó | J19: teljesítés %-a*
A20: Expenditures | C20: appropriation | D20: facts January-May | E20: % of facts * | F20: appropriation | G20: appropriation | H20: appropriation | I20: facts January-May | J20: % of facts *
A21: Grants for National Policy | B21: Nemzetpolitikai célú támogatások | C21: 76830.31997 | D21: 28439.29115 | E21: 37.01571354 | F21: 62955.4 | G21: 62955.4 | H21: 67550.0528 | I21: 27381.362 | J21: 40.53492316
A22: Operational costs of the fund management | B22: Működtetési célú kifizetések | C22: 5245.75259 | D22: 3822.945596 | E22: 72.87697104 | F22: 3724.4 | G22: 3724.4 | H22: 5262.813538 | I22: 5229.546352 | J22: 99.36788211
A23: Subsidies to the Rákóczi Association | B23: Rákóczi Szövetség támogatása | C23: 2600 | D23: 2000 | E23: 76.92307692 | F23: 2500 | G23: 2500 | H23: 2500 | I23: 2500 | J23: 100
A24: Subsidies to Thematic Programs | B24: Tematikus programok támogatása | C24: 728.9 | D24: 285.5 | E24: 39.16861023 | F24: 728.9 | G24: 728.9 | H24: 728.9 | I24: 0 | J24: 0
A25: Subsidies to the programme of the 'Hungarians' House' | B25: Magyarság Háza program támogatása | C25: 179.7 | D25: 179.7 | E25: 100 | F25: 179.7 | G25: 179.7 | H25: 179.7 | I25: 179.7 | J25: 100
A26: Subsidies to the programme of the Without Borders | B26: Határtalanul! program támogatása | C26: 10012.25376 | D26: 6335.565832 | E26: 63.27811883 | F26: 9000 | G26: 9000 | H26: 9364.338669 | I26: 6467.587781 | J26: 69.06614561
A27: Other expenditures | B27: Egyéb kiadások | C27: 1.28099 | D27: 0 | E27: 0 | F27: 0 | G27: 0 | H27: 0 | I27: 0 | J27: -
A28: Subtotal | B28: Költségvetési kiadások | C28: 95598.20731 | D28: 41063.00258 | E28: 42.95373704 | F28: 79088.4 | G28: 79088.4 | H28: 85585.80501 | I28: 41758.19613 | J28: 48.79103039
A29: Expenditures of special settlements | B29: Sajátos elszámolások kiadása | C29: 250.328 | D29: 0 | E29: 0 | F29: 0 | G29: 0 | H29: 0 | I29: 0 | J29: -
A30: Total expenditures | B30: Kiadások összesen | C30: 95848.53531 | D30: 41063.00258 | E30: 42.84155459 | F30: 79088.4 | G30: 79088.4 | H30: 85585.80501 | I30: 41758.19613 | J30: 48.79103039
A32: Opening balance | B32: BGA számlájának nyitóegyenlege | C32: 21.90105 | F32: 203.248178 | G32: 203.248178 | H32: 203.248178
A33: Total revenues | B33: Bevételek összesen | C33: 96029.88244 | D33: 45704.87994 | E33: 47.59443496 | F33: 79088.4 | G33: 79088.4 | H33: 85585.80501 | I33: 63761.75923 | J33: 74.50039083
A34: Total expenditures | B34: Kiadások összesen | C34: 95848.53531 | D34: 41063.00258 | E34: 42.84155459 | F34: 79088.4 | G34: 79088.4 | H34: 85585.80501 | I34: 41758.19613 | J34: 48.79103039
A35: Net balance | B35: BGA számlájának egyenlegváltozása | C35: 181.347128 | D35: 4641.877353 | E35: 2559.664112 | F35: 0 | G35: 0 | H35: 0 | I35: 22003.5631 | J35: -
A36: Closing balance | B36: BGA számlájának záróegyenlege | C36: 203.248178 | D36: 4663.778403 | E36: - | F36: 203.248178 | G36: 203.248178 | H36: 203.248178 | I36: 22206.81127 | J36: -
A38: * % of facts, preliminary facts of previous year=100, appropriation of current year =100 | B38: * a teljesítés %-a az előző évnél előzetes teljesítés=100, a tárgyévnél a módosított előirányzat=100

Sheet BGA-havi
B1: Magyar Államkincstár | S1: 5. Szám
H2: A Bethlen Gábor Alap költségvetésének előzetes teljesítése | S2: J/b./BGA melléklet
S3: Millió Ft
A4: Hungarian State Treasury | S4: No. 5
H5: Preliminary Balance of Bethlen Gábor Fund's Budget | S5: Appendix J/b./ BGA
S6: Million HUF
K7: 2026. | V7: 2026.
B8: Bevételek | C8: törvényi előirányzat | D8: törvénnyel módosított előirányzat | E8: módosított előirányzat | F8: I.hó | G8: II.hó | H8: III.hó | I8: IV.hó | J8: V.hó | K8: VI.hó | L8: VII.hó | M8: VIII.hó | N8: IX.hó | O8: X. hó | P8: XI.hó | Q8: XII. hó | R8: teljesítés I-V. hó | S8: teljesítés %-a | T8: I.n.év | U8: II.n.év | V8: III.n.év | W8: IV.n.év
A9: Revenues | C9: appropriation | D9: appropriation | E9: appropriation | F9: January | G9: February | H9: March | I9: April | J9: May | K9: June | L9: July | M9: August | N9: September | O9: October | P9: November | Q9: December | R9: facts January-May | S9: facts in the % of the appropriation | T9: 1st quarter | U9: 2nd quarter | V9: 3nd quarter | W9: 4th quarter
A10: Budgetary subsidy | B10: Költségvetési támogatás | C10: 79088.4 | D10: 79088.4 | E10: 82183.08852 | F10: 9979.7 | G10: 6051.4 | H10: 14296.975 | I10: 19159.183 | J10: 10835.42555 | R10: 60322.68355 | S10: 73.40036087 | T10: 30328.075
A11: Other income | B11: Egyéb bevétel | C11: 0 | D11: 0 | E11: 3402.716485 | F11: 0 | G11: 0 | H11: 3404.878345 | I11: 0 | J11: 0 | R11: 3404.878345 | S11: 100.0635334 | T11: 3404.878345
A12: Subtotal | B12: Költségvetési bevételek | C12: 79088.4 | D12: 79088.4 | E12: 85585.80501 | F12: 9979.7 | G12: 6051.4 | H12: 17701.85335 | I12: 19159.183 | J12: 10835.42555 | R12: 63727.56189 | S12: 74.46043405 | T12: 33732.95335
A13: Financial incomes | B13: Finanszírozási bevételek | C13: 0 | D13: 0 | E13: 0 | F13: 0 | G13: 0 | H13: 0 | I13: 0 | J13: 0 | R13: 0 | S13: - | T13: 0
A14: Income of special settlements | B14: Sajátos elszámolások bevétele | C14: 0 | D14: 0 | E14: 0 | F14: 10.701986 | G14: 2.49934 | H14: -1.243306 | I14: 13.764189 | J14: 8.475125 | R14: 34.197334 | S14: - | T14: 11.95802
A15: Total incomes | B15: Bevételek összesen | C15: 79088.4 | D15: 79088.4 | E15: 85585.80501 | F15: 9990.401986 | G15: 6053.89934 | H15: 17700.61004 | I15: 19172.94719 | J15: 10843.90067 | R15: 63761.75923 | S15: 74.50039083 | T15: 33744.91136
S16: Millió Ft
S17: Million HUF
K18: 2026. | V18: 2026.
B19: Kiadások | C19: törvényi előirányzat | D19: törvénnyel módosított előirányzat | E19: módosított előirányzat | F19: I.hó | G19: II.hó | H19: III.hó | I19: IV.hó | J19: V.hó | K19: VI.hó | L19: VII.hó | M19: VIII.hó | N19: IX.hó | O19: X. hó | P19: XI.hó | Q19: XII. hó | R19: teljesítés I-V. hó | S19: teljesítés %-a | T19: I.n.év | U19: II.n.év | V19: III.n.év | W19: IV.n.év
A20: Expenditures | C20: appropriation | D20: appropriation | E20: appropriation | F20: January | G20: February | H20: March | I20: April | J20: May | K20: June | L20: July | M20: August | N20: September | O20: October | P20: November | Q20: December | R20: facts January-May | S20: facts in the % of the appropriation | T20: 1st quarter | U20: 2nd quarter | V20: 3nd quarter | W20: 4th quarter
A21: Grants for National Policy | B21: Nemzetpolitikai célú támogatások | C21: 62955.4 | D21: 62955.4 | E21: 67550.0528 | F21: 0 | G21: 2770 | H21: 18570.505 | I21: 6040.857 | J21: 0 | R21: 27381.362 | S21: 40.53492316 | T21: 21340.505
A22: - 'In hungarian in the homeland' program | B22: - „Szülőföldön magyarul” program | C22: 23102.9 | D22: 23102.9 | E22: 23102.9 | F22: 0 | G22: 0 | H22: 0 | I22: 0 | J22: 0 | R22: 0 | S22: 0 | T22: 0
A23: - Social benefits | B23: - Szociális támogatások | C23: 2785.2 | D23: 2785.2 | E23: 2785.2 | F23: 0 | G23: 0 | H23: 0 | I23: 0 | J23: 0 | R23: 0 | S23: 0 | T23: 0
A24: - Subsidies based on a tender procedure | B24: - Pályázati eljárás útján nyújtott támogatások | C24: 1507.5 | D24: 1507.5 | E24: 1507.5 | F24: 0 | G24: 0 | H24: 0 | I24: 0 | J24: 0 | R24: 0 | S24: 0 | T24: 0
A25: - Subsidies provided to institutions of national importance and other organizations | B25: - Nemzeti jelentőségű intézmények és egyéb szervezetek részére nyújtott egyedi támogatások | C25: 35559.8 | D25: 35559.8 | E25: 40154.4528 | F25: 0 | G25: 2770 | H25: 18570.505 | I25: 6040.857 | J25: 0 | R25: 27381.362 | S25: 68.1901012 | T25: 21340.505
A26: Operational costs of the fund management | B26: Működtetési célú kifizetések | C26: 3724.4 | D26: 3724.4 | E26: 5262.813538 | F26: 10.590396 | G26: 4831.417005 | H26: 319.455194 | I26: 60.519319 | J26: 7.564438 | R26: 5229.546352 | S26: 99.36788211 | T26: 5161.462595
A27: Subsidies to the Rákóczi Association | B27: Rákóczi Szövetség támogatása | C27: 2500 | D27: 2500 | E27: 2500 | F27: 0 | G27: 2500 | H27: 0 | I27: 0 | J27: 0 | R27: 2500 | S27: 100 | T27: 2500
A28: Subsidies to Thematic Programs | B28: Tematikus programok támogatása | C28: 728.9 | D28: 728.9 | E28: 728.9 | F28: 0 | G28: 0 | H28: 0 | I28: 0 | J28: 0 | R28: 0 | S28: 0 | T28: 0
A29: Subsidies to the programme of the 'Hungarians' House' | B29: Magyarság Háza program támogatása | C29: 179.7 | D29: 179.7 | E29: 179.7 | F29: 0 | G29: 0 | H29: 179.7 | I29: 0 | J29: 0 | R29: 179.7 | S29: 100 | T29: 179.7
A30: Subsidies to the programme of the Without Borders | B30: Határtalanul! program támogatása | C30: 9000 | D30: 9000 | E30: 9364.338669 | F30: 3.566868 | G30: 592.027766 | H30: 2447.106062 | I30: 2663.532343 | J30: 761.354742 | R30: 6467.587781 | S30: 69.06614561 | T30: 3042.700696
A31: Other expenditures | B31: Egyéb kiadások | C31: 0 | D31: 0 | E31: 0 | F31: 0 | G31: 0 | H31: 0 | I31: 0 | J31: 0 | R31: 0 | S31: - | T31: 0
A32: Subtotal | B32: Költségvetési kiadások | C32: 79088.4 | D32: 79088.4 | E32: 85585.80501 | F32: 14.157264 | G32: 10693.44477 | H32: 21516.76626 | I32: 8764.908662 | J32: 768.91918 | R32: 41758.19613 | S32: 48.79103039 | T32: 32224.36829
A33: Expenditure of special settlements | B33: Sajátos elszámolások kiadása | C33: 0 | D33: 0 | E33: 0 | F33: 0 | G33: 0 | H33: 0 | I33: 0 | J33: 0 | R33: 0 | S33: - | T33: 0
A34: Total expenditures | B34: Kiadások összesen | C34: 79088.4 | D34: 79088.4 | E34: 85585.80501 | F34: 14.157264 | G34: 10693.44477 | H34: 21516.76626 | I34: 8764.908662 | J34: 768.91918 | R34: 41758.19613 | S34: 48.79103039 | T34: 32224.36829
A36: Total revenues | B36: Bevételek összesen | C36: 79088.4 | D36: 79088.4 | E36: 85585.80501 | F36: 9990.401986 | G36: 6053.89934 | H36: 17700.61004 | I36: 19172.94719 | J36: 10843.90067 | R36: 63761.75923 | S36: 74.50039083 | T36: 33744.91136
A37: Total expenditures | B37: Kiadások összesen | C37: 79088.4 | D37: 79088.4 | E37: 85585.80501 | F37: 14.157264 | G37: 10693.44477 | H37: 21516.76626 | I37: 8764.908662 | J37: 768.91918 | R37: 41758.19613 | S37: 48.79103039 | T37: 32224.36829
A38: Net balance | B38: Egyenlegváltozás | C38: 0 | D38: 0 | E38: 0 | F38: 9976.244722 | G38: -4639.545431 | H38: -3816.156217 | I38: 10408.03853 | J38: 10074.98149 | R38: 22003.5631 | S38: - | T38: 1520.543074

Sheet BGA-teljarány
B1: Magyar Államkincstár | S1: 5. Szám
H2: A Bethlen Gábor Alap költségvetésének előzetes teljesítése az előirányzat százalékában | S2: J/b2./BGA melléklet
S3: %-ban
A4: Hungarian State Treasury | S4: No. 5
F5: Preliminary Balance of Bethlen Gábor Fund's Budget in per cent of approval | S5: Appendix J/b2./BGA
S6: per cent
H7: 2026. | O7: kumulált | R7: 2026.
B8: Bevételek | C8: I.hó | D8: II.hó | E8: III.hó | F8: IV.hó | G8: V.hó | H8: VI.hó | I8: VII.hó | J8: VIII.hó | K8: IX.hó | L8: X. hó | M8: XI.hó | N8: XII. hó | O8: teljesítés %-a | P8: I.n.év | Q8: II.n.év | R8: III.n.év | S8: IV.n.év
A9: Revenues | C9: January | D9: February | E9: March | F9: April | G9: May | H9: June | I9: July | J9: August | K9: September | L9: October | M9: November | N9: December | O9: facts in the % of the appropriation | P9: 1st quarter | Q9: 2nd quarter | R9: 3nd quarter | S9: 4th quarter
A10: Budgetary subsidy | B10: Költségvetési támogatás | C10: 12.14325256 | D10: 7.363315384 | E10: 17.39649271 | F10: 23.31280479 | G10: 13.18449543 | O10: 73.40036087 | P10: 36.90306065
A11: Other income | B11: Egyéb bevétel | C11: 0 | D11: 0 | E11: 100.0635334 | F11: 0 | G11: 0 | O11: 100.0635334 | P11: 100.0635334
A12: Subtotal | B12: Költségvetési bevételek | C12: 11.66046168 | D12: 7.070565031 | E12: 20.68316509 | F12: 22.38593538 | G12: 12.66030687 | O12: 74.46043405 | P12: 39.41419181
A13: Financial incomes | B13: Finanszírozási bevételek
A14: Income of special settlements | B14: Sajátos elszámolások bevétele
A15: Total income | B15: Bevételek összesen | C15: 11.67296608 | D15: 7.073485305 | E15: 20.68171239 | F15: 22.4020177 | G15: 12.67020936 | O15: 74.50039083 | P15: 39.42816377
S16: %-ban
S17: per cent
H18: 2026. | O18: kumulált | R18: 2026.
B19: Kiadások | C19: I.hó | D19: II.hó | E19: III.hó | F19: IV.hó | G19: V.hó | H19: VI.hó | I19: VII.hó | J19: VIII.hó | K19: IX.hó | L19: X. hó | M19: XI.hó | N19: XII. hó | O19: teljesítés %-a | P19: I.n.év | Q19: II.n.év | R19: III.n.év | S19: IV.n.év
A20: Expenditures | C20: January | D20: February | E20: March | F20: April | G20: May | H20: June | I20: July | J20: August | K20: September | L20: October | M20: November | N20: December | O20: facts in the % of the appropriation | P20: 1st quarter | Q20: 2nd quarter | R20: 3nd quarter | S20: 4th quarter
A21: Grants for National Policy | B21: Nemzetpolitikai célú támogatások | C21: 0 | D21: 4.100662968 | E21: 27.4914737 | F21: 8.942786496 | G21: 0 | O21: 40.53492316 | P21: 31.59213667
A22: - 'In hungarian in the homeland' program | B22: - „Szülőföldön magyarul” program | C22: 0 | D22: 0 | E22: 0 | F22: 0 | G22: 0 | O22: 0 | P22: 0
A23: - Social benefits | B23: - Szociális támogatások | C23: 0 | D23: 0 | E23: 0 | F23: 0 | G23: 0 | O23: 0 | P23: 0
A24: - Subsidies based on a tender procedure | B24: - Pályázati eljárás útján nyújtott támogatások | C24: 0 | D24: 0 | E24: 0 | F24: 0 | G24: 0 | O24: 0 | P24: 0
A25: - Subsidies provided to institutions of national importance and other organizations | B25: - Nemzeti jelentőségű intézmények és egyéb szervezetek részére nyújtott egyedi támogatások | C25: 0 | D25: 6.898363212 | E25: 46.24768539 | F25: 15.0440526 | G25: 0 | O25: 68.1901012 | P25: 53.1460486
A26: Operational costs of the fund management | B26: Működtetési célú kifizetések | C26: 0.2012306901 | D26: 91.80292956 | E26: 6.070045836 | F26: 1.149942299 | G26: 0.1437337262 | O26: 99.36788211 | P26: 98.07420608
A27: Subsidies to the Rákóczi Association | B27: Rákóczi Szövetség támogatása | C27: 0 | D27: 100 | E27: 0 | F27: 0 | G27: 0 | O27: 100 | P27: 100
A28: Subsidies to Thematic Programs | B28: Tematikus programok támogatása | C28: 0 | D28: 0 | E28: 0 | F28: 0 | G28: 0 | O28: 0 | P28: 0
A29: Subsidies to the programme of the 'Hungarians' House' | B29: Magyarság Háza program támogatása | C29: 0 | D29: 0 | E29: 100 | F29: 0 | G29: 0 | O29: 100 | P29: 100
A30: Subsidies to the programme of the Without Borders | B30: Határtalanul! program támogatása | C30: 0.03808990817 | D30: 6.322152444 | E30: 26.1321824 | F30: 28.44335769 | G30: 8.130363167 | O30: 69.06614561 | P30: 32.49242476
A31: Other expenditures | B31: Egyéb kiadások
A32: Subtotal | B32: Költségvetési kiadások | C32: 0.0165416029 | D32: 12.49441396 | E32: 25.14057822 | F32: 10.24107755 | G32: 0.8984190543 | O32: 48.79103039 | P32: 37.65153379
A33: Expenditure of special settlements | B33: Sajátos elszámolások kiadása
A34: Total expenditures | B34: Kiadások összesen | C34: 0.0165416029 | D34: 12.49441396 | E34: 25.14057822 | F34: 10.24107755 | G34: 0.8984190543 | O34: 48.79103039 | P34: 37.65153379
A36: Total revenues | B36: Bevételek összesen | C36: 11.67296608 | D36: 7.073485305 | E36: 20.68171239 | F36: 22.4020177 | G36: 12.67020936 | O36: 74.50039083 | P36: 39.42816377
A37: Total expenditures | B37: Kiadások összesen | C37: 0.0165416029 | D37: 12.49441396 | E37: 25.14057822 | F37: 10.24107755 | G37: 0.8984190543 | O37: 48.79103039 | P37: 37.65153379

Sheet ábra-NFA
B1: Nemzeti Foglalkoztatási Alap
B2: National Employment Fund
D7: teljesítés %-a* | H7: =+CONCATENATE("teljesítés ",#REF!) ->  | I7: =+D7 -> teljesítés %-a*
D17: =+IF(zászlók!$A$20=1,"Adat jellege:","type of data") -> type of data
A29: 1 | B29: 8 | E29: 1 | H29: 10
B30: =IF(zászlók!$A$20=1,'NFA-havi'!$B10,'NFA-havi'!$A10) -> Revenues of Social Renewal Operational Programme (TÁMOP) measures | E30: =IF(zászlók!$A$20=1,"havi teljesítés (millió Ft)","monthly facts (Million HUF)") -> monthly facts (Million HUF) | H30: =IF(zászlók!$A$20=1,'NFA-havi'!$B23,'NFA-havi'!$A23) -> Subsidies to employment and training
B31: =IF(zászlók!$A$20=1,'NFA-havi'!$B11,'NFA-havi'!$A11) -> Other incomes | E31: =IF(zászlók!$A$20=1,"teljesítési arány (%)","rate of facts (%)") -> rate of facts (%) | H31: =IF(zászlók!$A$20=1,'NFA-havi'!$B24,'NFA-havi'!$A24) -> Subsidies to vocational training and adult education
B32: =IF(zászlók!$A$20=1,'NFA-havi'!$B12,'NFA-havi'!$A12) -> Redemption of wage guarantee subsidies | H32: =IF(zászlók!$A$20=1,'NFA-havi'!$B25,'NFA-havi'!$A25) -> Passive expenditures and unemployment benefit
B33: =IF(zászlók!$A$20=1,'NFA-havi'!$B13,'NFA-havi'!$A13) -> Health insurance and labour market contribution entitled for Economy Protection Employment Fund | H33: =IF(zászlók!$A$20=1,'NFA-havi'!$B26,'NFA-havi'!$A26) -> Payment of wage guarantee subsidies
B34: =IF(zászlók!$A$20=1,'NFA-havi'!$B14,'NFA-havi'!$A14) -> Subtotal | H34: =IF(zászlók!$A$20=1,'NFA-havi'!$B27,'NFA-havi'!$A27) -> Expenditures on operation purposes
B35: =IF(zászlók!$A$20=1,'NFA-havi'!$B15,'NFA-havi'!$A15) -> Financial incomes | H35: =IF(zászlók!$A$20=1,'NFA-havi'!$B28,'NFA-havi'!$A28) -> Start-work programme
B36: =IF(zászlók!$A$20=1,'NFA-havi'!$B16,'NFA-havi'!$A16) -> Income of special settlements | H36: =IF(zászlók!$A$20=1,'NFA-havi'!$B29,'NFA-havi'!$A29) -> EU pre-financing and co-financing
B37: =IF(zászlók!$A$20=1,'NFA-havi'!$B17,'NFA-havi'!$A17) -> Total revenues | H37: =IF(zászlók!$A$20=1,'NFA-havi'!$B30,'NFA-havi'!$A30) -> Subtotal
H38: =IF(zászlók!$A$20=1,'NFA-havi'!$B31,'NFA-havi'!$A31) -> Expenditure of special settlements
H39: =IF(zászlók!$A$20=1,'NFA-havi'!$B32,'NFA-havi'!$A32) -> Total expenditures
C68: 26. jan. | D68: febr. | E68: márc. | F68: ápr. | G68: máj. | H68: jún. | I68: júl. | J68: aug. | K68: szept. | L68: okt. | M68: nov. | N68: dec.
C69: 26. Jan | D69: Febr | E69: March | F69: April | G69: May | H69: June | I69: July | J69: August | K69: Sept | L69: Oct | M69: Nov | N69: Dec
C70: =+IF(zászlók!$A$20=1,C68,C69) -> 26. Jan | D70: =+IF(zászlók!$A$20=1,D68,D69) -> Febr | E70: =+IF(zászlók!$A$20=1,E68,E69) -> March | F70: =+IF(zászlók!$A$20=1,F68,F69) -> April | G70: =+IF(zászlók!$A$20=1,G68,G69) -> May | H70: =+IF(zászlók!$A$20=1,H68,H69) -> June | I70: =+IF(zászlók!$A$20=1,I68,I69) -> July | J70: =+IF(zászlók!$A$20=1,J68,J69) -> August | K70: =+IF(zászlók!$A$20=1,K68,K69) -> Sept | L70: =+IF(zászlók!$A$20=1,L68,L69) -> Oct | M70: =+IF(zászlók!$A$20=1,M68,M69) -> Nov | N70: =+IF(zászlók!$A$20=1,N68,N69) -> Dec
B71: =+INDEX($B$77:$B$78,$E$29,1) -> monthly facts (Million HUF) | C71: =+INDEX($C$77:$N$78,$E$29,C73) -> 44382.29838 | D71: 44354.99116 | E71: 44163.35209 | F71: 41373.65443 | G71: 40327.94261
B72: =+INDEX($B$82:$B$83,$E$29,1) -> monthly facts (Million HUF) | C72: =+INDEX($C$82:$N$83,$E$29,C74) -> 25495.16553 | D72: 38138.03995 | E72: 48133.67135 | F72: 42002.22659 | G72: 37879.32435
C73: 1 | D73: 2 | E73: 3 | F73: 4 | G73: 5 | H73: 6 | I73: 7 | J73: 8 | K73: 9 | L73: 10 | M73: 11 | N73: 12
B75: bevételek
B77: =IF(zászlók!$A$20=1,"havi teljesítés (millió Ft)","monthly facts (Million HUF)") -> monthly facts (Million HUF) | C77: =+INDEX('NFA-havi'!$F$10:$Q$17,$B$29,C$73) -> 44382.29838 | D77: =+INDEX('NFA-havi'!$F$10:$Q$17,$B$29,D$73) -> 44354.99116 | E77: =+INDEX('NFA-havi'!$F$10:$Q$17,$B$29,E$73) -> 44163.35209 | F77: =+INDEX('NFA-havi'!$F$10:$Q$17,$B$29,F$73) -> 41373.65443 | G77: =+INDEX('NFA-havi'!$F$10:$Q$17,$B$29,G$73) -> 40327.94261 | H77: =+INDEX('NFA-havi'!$F$10:$Q$17,$B$29,H$73) ->  | I77: =+INDEX('NFA-havi'!$F$10:$Q$17,$B$29,I$73) ->  | J77: =+INDEX('NFA-havi'!$F$10:$Q$17,$B$29,J$73) ->  | K77: =+INDEX('NFA-havi'!$F$10:$Q$17,$B$29,K$73) ->  | L77: =+INDEX('NFA-havi'!$F$10:$Q$17,$B$29,L$73) ->  | M77: =+INDEX('NFA-havi'!$F$10:$Q$17,$B$29,M$73) ->  | N77: =+INDEX('NFA-havi'!$F$10:$Q$17,$B$29,N$73) -> 
B78: =IF(zászlók!$A$20=1,"teljesítési arány (%)","rate of facts (%)") -> rate of facts (%) | C78: =+INDEX('NFA-teljarány'!$C$10:$N$17,$B$29,C$73) -> 8.037359359 | D78: =+INDEX('NFA-teljarány'!$C$10:$N$17,$B$29,D$73) -> 8.03241419 | E78: =+INDEX('NFA-teljarány'!$C$10:$N$17,$B$29,E$73) -> 7.997709542 | F78: =+INDEX('NFA-teljarány'!$C$10:$N$17,$B$29,F$73) -> 7.492512572 | G78: =+INDEX('NFA-teljarány'!$C$10:$N$17,$B$29,G$73) -> 7.303140639 | H78: =+INDEX('NFA-teljarány'!$C$10:$N$17,$B$29,H$73) ->  | I78: =+INDEX('NFA-teljarány'!$C$10:$N$17,$B$29,I$73) ->  | J78: =+INDEX('NFA-teljarány'!$C$10:$N$17,$B$29,J$73) ->  | K78: =+INDEX('NFA-teljarány'!$C$10:$N$17,$B$29,K$73) ->  | L78: =+INDEX('NFA-teljarány'!$C$10:$N$17,$B$29,L$73) ->  | M78: =+INDEX('NFA-teljarány'!$C$10:$N$17,$B$29,M$73) ->  | N78: =+INDEX('NFA-teljarány'!$C$10:$N$17,$B$29,N$73) -> 
B80: kiadások
B82: =IF(zászlók!$A$20=1,"havi teljesítés (millió Ft)","monthly facts (Million HUF)") -> monthly facts (Million HUF) | C82: =+INDEX('NFA-havi'!$F$23:$Q$32,$H$29,C$73) -> 25495.16553 | D82: =+INDEX('NFA-havi'!$F$23:$Q$32,$H$29,D$73) -> 38138.03995 | E82: =+INDEX('NFA-havi'!$F$23:$Q$32,$H$29,E$73) -> 48133.67135 | F82: =+INDEX('NFA-havi'!$F$23:$Q$32,$H$29,F$73) -> 42002.22659 | G82: =+INDEX('NFA-havi'!$F$23:$Q$32,$H$29,G$73) -> 37879.32435 | H82: =+INDEX('NFA-havi'!$F$23:$Q$32,$H$29,H$73) ->  | I82: =+INDEX('NFA-havi'!$F$23:$Q$32,$H$29,I$73) ->  | J82: =+INDEX('NFA-havi'!$F$23:$Q$32,$H$29,J$73) ->  | K82: =+INDEX('NFA-havi'!$F$23:$Q$32,$H$29,K$73) ->  | L82: =+INDEX('NFA-havi'!$F$23:$Q$32,$H$29,L$73) ->  | M82: =+INDEX('NFA-havi'!$F$23:$Q$32,$H$29,M$73) ->  | N82: =+INDEX('NFA-havi'!$F$23:$Q$32,$H$29,N$73) -> 
B83: =IF(zászlók!$A$20=1,"teljesítési arány (%)","rate of facts (%)") -> rate of facts (%) | C83: =+INDEX('NFA-teljarány'!$C$23:$N$35,$H$29,C$73) -> 4.577229001 | D83: =+INDEX('NFA-teljarány'!$C$23:$N$35,$H$29,D$73) -> 6.847044874 | E83: =+INDEX('NFA-teljarány'!$C$23:$N$35,$H$29,E$73) -> 8.641592702 | F83: =+INDEX('NFA-teljarány'!$C$23:$N$35,$H$29,F$73) -> 7.54079472 | G83: =+INDEX('NFA-teljarány'!$C$23:$N$35,$H$29,G$73) -> 6.800596831 | H83: =+INDEX('NFA-teljarány'!$C$23:$N$35,$H$29,H$73) ->  | I83: =+INDEX('NFA-teljarány'!$C$23:$N$35,$H$29,I$73) ->  | J83: =+INDEX('NFA-teljarány'!$C$23:$N$35,$H$29,J$73) ->  | K83: =+INDEX('NFA-teljarány'!$C$23:$N$35,$H$29,K$73) ->  | L83: =+INDEX('NFA-teljarány'!$C$23:$N$35,$H$29,L$73) ->  | M83: =+INDEX('NFA-teljarány'!$C$23:$N$35,$H$29,M$73) ->  | N83: =+INDEX('NFA-teljarány'!$C$23:$N$35,$H$29,N$73) -> 

Sheet ábra-KNPA
B1: Központi Nukleáris Pénzügyi Alap
B2: Central Nuclear Financial Fund
D7: teljesítés %-a* | H7: =+CONCATENATE("teljesítés ",#REF!) ->  | I7: =+D7 -> teljesítés %-a*
D17: =+IF(zászlók!$A$20=1,"Adat jellege:","type of data") -> type of data
B29: 8 | E29: 1 | H29: 12
B30: =+IF(zászlók!$A$20=1,'KNPA-havi'!$B10,'KNPA-havi'!$A10) -> Payments from nuclear institutions: Nuclear Power-station in Paks | E30: =IF(zászlók!$A$20=1,"havi teljesítés (millió Ft)","monthly facts (Million HUF)") -> monthly facts (Million HUF) | H30: =+IF(zászlók!$A$20=1,'KNPA-havi'!$B23,'KNPA-havi'!$A23) -> Development and investment expenditures
B31: =+IF(zászlók!$A$20=1,'KNPA-havi'!$B11,'KNPA-havi'!$A11) -> Final and temporary placement of radioactive waste material | E31: =IF(zászlók!$A$20=1,"teljesítési arány (%)","rate of facts (%)") -> rate of facts (%) | H31: =+IF(zászlók!$A$20=1,'KNPA-havi'!$B24,'KNPA-havi'!$A24) -> Investment and development of storage place for waste material of low and medium radioactivity
B32: =+IF(zászlók!$A$20=1,'KNPA-havi'!$B12,'KNPA-havi'!$A12) -> Budgetary subsidy | H32: =+IF(zászlók!$A$20=1,'KNPA-havi'!$B25,'KNPA-havi'!$A25) -> Selection of location of high radioactivity waste material storage place
B33: =+IF(zászlók!$A$20=1,'KNPA-havi'!$B13,'KNPA-havi'!$A13) -> Other incomes | H33: =+IF(zászlók!$A$20=1,'KNPA-havi'!$B26,'KNPA-havi'!$A26) -> Enlargement and renovation of temporary storage place of dead cells
B34: =+IF(zászlók!$A$20=1,'KNPA-havi'!$B14,'KNPA-havi'!$A14) -> Subtotal | H34: =+IF(zászlók!$A$20=1,'KNPA-havi'!$B27,'KNPA-havi'!$A27) -> Preparation for decommissioning of nuclear facilities: PAKS NPP
B35: =+IF(zászlók!$A$20=1,'KNPA-havi'!$B15,'KNPA-havi'!$A15) -> Financial incomes | H35: =+IF(zászlók!$A$20=1,'KNPA-havi'!$B28,'KNPA-havi'!$A28) -> Money transfers
B36: =+IF(zászlók!$A$20=1,'KNPA-havi'!$B16,'KNPA-havi'!$A16) -> Income of special settlements | H36: =+IF(zászlók!$A$20=1,'KNPA-havi'!$B29,'KNPA-havi'!$A29) -> Operation costs of waste material storages and RHK Kft.
B37: =+IF(zászlók!$A$20=1,'KNPA-havi'!$B17,'KNPA-havi'!$A17) -> Total revenues | H37: =+IF(zászlók!$A$20=1,'KNPA-havi'!$B30,'KNPA-havi'!$A30) -> Subsidy for information services and social controls
H38: =+IF(zászlók!$A$20=1,'KNPA-havi'!$B31,'KNPA-havi'!$A31) -> For operational purposes of the Fund Management
H39: =+IF(zászlók!$A$20=1,'KNPA-havi'!$B32,'KNPA-havi'!$A32) -> Subtotal
H40: =+IF(zászlók!$A$20=1,'KNPA-havi'!$B33,'KNPA-havi'!$A33) -> Expenditure of special settlements
H41: =+IF(zászlók!$A$20=1,'KNPA-havi'!$B34,'KNPA-havi'!$A34) -> Total expenditures
C65: 26. jan. | D65: febr. | E65: márc. | F65: ápr. | G65: máj. | H65: jún. | I65: júl. | J65: aug. | K65: szept. | L65: okt. | M65: nov. | N65: dec.
C66: 26. Jan | D66: Febr | E66: March | F66: April | G66: May | H66: June | I66: July | J66: August | K66: Sept | L66: Oct | M66: Nov | N66: Dec
C67: =+IF(zászlók!$A$20=1,C65,C66) -> 26. Jan | D67: =+IF(zászlók!$A$20=1,D65,D66) -> Febr | E67: =+IF(zászlók!$A$20=1,E65,E66) -> March | F67: =+IF(zászlók!$A$20=1,F65,F66) -> April | G67: =+IF(zászlók!$A$20=1,G65,G66) -> May | H67: =+IF(zászlók!$A$20=1,H65,H66) -> June | I67: =+IF(zászlók!$A$20=1,I65,I66) -> July | J67: =+IF(zászlók!$A$20=1,J65,J66) -> August | K67: =+IF(zászlók!$A$20=1,K65,K66) -> Sept | L67: =+IF(zászlók!$A$20=1,L65,L66) -> Oct | M67: =+IF(zászlók!$A$20=1,M65,M66) -> Nov | N67: =+IF(zászlók!$A$20=1,N65,N66) -> Dec
B68: =+INDEX($B$74:$B$75,$E$29,1) -> monthly facts (Million HUF) | C68: =+INDEX($C$74:$N$75,$E$29,C$70) -> 1920-05-12T11:28:09.696 | D68: 1920-05-12T15:11:53.491 | E68: 1920-05-12T12:58:52.032 | F68: 1920-05-12T15:23:48.192 | G68: 1920-05-12T09:39:01.872
B69: =+INDEX($B$79:$B$80,$E$29,1) -> monthly facts (Million HUF) | C69: =+INDEX($C$79:$N$80,$E$29,C70) -> 00:00:00 | D69: 00:00:00 | E69: 1914-10-10T03:38:10.637 | F69: 1910-07-18T20:06:48.557 | G69: 00:00:00
C70: 1900-01-01 | D70: 1900-01-02 | E70: 1900-01-03 | F70: 1900-01-04 | G70: 1900-01-05 | H70: 1900-01-06 | I70: 1900-01-07 | J70: 1900-01-08 | K70: 1900-01-09 | L70: 1900-01-10 | M70: 1900-01-11 | N70: 1900-01-12
B72: bevételek
B74: =IF(zászlók!$A$20=1,"havi teljesítés (millió Ft)","monthly facts (Million HUF)") -> monthly facts (Million HUF) | C74: =+INDEX('KNPA-havi'!$F$10:$Q$17,$B$29,C$70) -> 1920-05-12T11:28:09.696 | D74: =+INDEX('KNPA-havi'!$F$10:$Q$17,$B$29,D$70) -> 1920-05-12T15:11:53.491 | E74: =+INDEX('KNPA-havi'!$F$10:$Q$17,$B$29,E$70) -> 1920-05-12T12:58:52.032 | F74: =+INDEX('KNPA-havi'!$F$10:$Q$17,$B$29,F$70) -> 1920-05-12T15:23:48.192 | G74: =+INDEX('KNPA-havi'!$F$10:$Q$17,$B$29,G$70) -> 1920-05-12T09:39:01.872 | H74: =+INDEX('KNPA-havi'!$F$10:$Q$17,$B$29,H$70) ->  | I74: =+INDEX('KNPA-havi'!$F$10:$Q$17,$B$29,I$70) ->  | J74: =+INDEX('KNPA-havi'!$F$10:$Q$17,$B$29,J$70) ->  | K74: =+INDEX('KNPA-havi'!$F$10:$Q$17,$B$29,K$70) ->  | L74: =+INDEX('KNPA-havi'!$F$10:$Q$17,$B$29,L$70) ->  | M74: =+INDEX('KNPA-havi'!$F$10:$Q$17,$B$29,M$70) ->  | N74: =+INDEX('KNPA-havi'!$F$10:$Q$17,$B$29,N$70) ->  | O74: =+INDEX('KNPA-havi'!$F$10:$Q$17,$B$29,O$70) -> 
B75: =IF(zászlók!$A$20=1,"teljesítési arány (%)","rate of facts (%)") -> rate of facts (%) | C75: =+INDEX('KNPA-teljarány'!$C$10:$N$17,$B$29,C$70) -> 1900-01-08T07:20:12.644 | D75: =+INDEX('KNPA-teljarány'!$C$10:$N$17,$B$29,D$70) -> 1900-01-08T07:20:34.772 | E75: =+INDEX('KNPA-teljarány'!$C$10:$N$17,$B$29,E$70) -> 1900-01-08T07:20:25.860 | F75: =+INDEX('KNPA-teljarány'!$C$10:$N$17,$B$29,F$70) -> 1900-01-08T07:20:35.570 | G75: =+INDEX('KNPA-teljarány'!$C$10:$N$17,$B$29,G$70) -> 1900-01-08T07:20:12.471 | H75: =+INDEX('KNPA-teljarány'!$C$10:$N$17,$B$29,H$70) ->  | I75: =+INDEX('KNPA-teljarány'!$C$10:$N$17,$B$29,I$70) ->  | J75: =+INDEX('KNPA-teljarány'!$C$10:$N$17,$B$29,J$70) ->  | K75: =+INDEX('KNPA-teljarány'!$C$10:$N$17,$B$29,K$70) ->  | L75: =+INDEX('KNPA-teljarány'!$C$10:$N$17,$B$29,L$70) ->  | M75: =+INDEX('KNPA-teljarány'!$C$10:$N$17,$B$29,M$70) ->  | N75: =+INDEX('KNPA-teljarány'!$C$10:$N$17,$B$29,N$70) -> 
B77: kiadások
B79: =IF(zászlók!$A$20=1,"havi teljesítés (millió Ft)","monthly facts (Million HUF)") -> monthly facts (Million HUF) | C79: =+INDEX('KNPA-havi'!$F$23:$Q$34,$H$29,C$70) -> 0 | D79: =+INDEX('KNPA-havi'!$F$23:$Q$34,$H$29,D$70) -> 0 | E79: =+INDEX('KNPA-havi'!$F$23:$Q$34,$H$29,E$70) -> 5397.151512 | F79: =+INDEX('KNPA-havi'!$F$23:$Q$34,$H$29,F$70) -> 3852.838062 | G79: =+INDEX('KNPA-havi'!$F$23:$Q$34,$H$29,G$70) -> 0 | H79: =+INDEX('KNPA-havi'!$F$23:$Q$34,$H$29,H$70) ->  | I79: =+INDEX('KNPA-havi'!$F$23:$Q$34,$H$29,I$70) ->  | J79: =+INDEX('KNPA-havi'!$F$23:$Q$34,$H$29,J$70) ->  | K79: =+INDEX('KNPA-havi'!$F$23:$Q$34,$H$29,K$70) ->  | L79: =+INDEX('KNPA-havi'!$F$23:$Q$34,$H$29,L$70) ->  | M79: =+INDEX('KNPA-havi'!$F$23:$Q$34,$H$29,M$70) ->  | N79: =+INDEX('KNPA-havi'!$F$23:$Q$34,$H$29,N$70) ->  | O79: =+INDEX('KNPA-havi'!$F$23:$Q$34,$H$29,O$70) -> 
B80: =IF(zászlók!$A$20=1,"teljesítési arány (%)","rate of facts (%)") -> rate of facts (%) | C80: =+INDEX('KNPA-teljarány'!$C$23:$N$34,$H$29,C$70) -> 0 | D80: =+INDEX('KNPA-teljarány'!$C$23:$N$34,$H$29,D$70) -> 0 | E80: =+INDEX('KNPA-teljarány'!$C$23:$N$34,$H$29,E$70) -> 12.9248974 | F80: =+INDEX('KNPA-teljarány'!$C$23:$N$34,$H$29,F$70) -> 9.226633071 | G80: =+INDEX('KNPA-teljarány'!$C$23:$N$34,$H$29,G$70) -> 0 | H80: =+INDEX('KNPA-teljarány'!$C$23:$N$34,$H$29,H$70) ->  | I80: =+INDEX('KNPA-teljarány'!$C$23:$N$34,$H$29,I$70) ->  | J80: =+INDEX('KNPA-teljarány'!$C$23:$N$34,$H$29,J$70) ->  | K80: =+INDEX('KNPA-teljarány'!$C$23:$N$34,$H$29,K$70) ->  | L80: =+INDEX('KNPA-teljarány'!$C$23:$N$34,$H$29,L$70) ->  | M80: =+INDEX('KNPA-teljarány'!$C$23:$N$34,$H$29,M$70) ->  | N80: =+INDEX('KNPA-teljarány'!$C$23:$N$34,$H$29,N$70) -> 

Sheet ábra-NKFIA
B1: Nemzeti Kutatási, Fejlesztési és Innovációs Alap
B2: National Research, Development and Innovation Fund
D7: teljesítés %-a* | H7: =+CONCATENATE("teljesítés ",#REF!) ->  | I7: =+D7 -> teljesítés %-a*
D17: =+IF(zászlók!$A$20=1,"Adat jellege:","type of data") -> type of data
B29: 6 | E29: 1 | H29: 8
B30: =+IF(zászlók!$A$20=1,'NKFIA-havi'!$B10,'NKFIA-havi'!$A10) -> Contribution for innovation | E30: =IF(zászlók!$A$20=1,"havi teljesítés (millió Ft)","monthly facts (Million HUF)") -> monthly facts (Million HUF) | H30: =+IF(zászlók!$A$20=1,'NKFIA-havi'!$B21,'NKFIA-havi'!$A21) -> Cost of Research Fund
B31: =+IF(zászlók!$A$20=1,'NKFIA-havi'!$B11,'NKFIA-havi'!$A11) -> Other incomes | E31: =IF(zászlók!$A$20=1,"teljesítési arány (%)","rate of facts (%)") -> rate of facts (%) | H31: =+IF(zászlók!$A$20=1,'NKFIA-havi'!$B22,'NKFIA-havi'!$A22) -> Cost of Innovation Fund
B32: =+IF(zászlók!$A$20=1,'NKFIA-havi'!$B12,'NKFIA-havi'!$A12) -> Subtotal | H32: =+IF(zászlók!$A$20=1,'NKFIA-havi'!$B23,'NKFIA-havi'!$A23) -> Payments to the central budget
B33: =+IF(zászlók!$A$20=1,'NKFIA-havi'!$B13,'NKFIA-havi'!$A13) -> Financial income | H33: =+IF(zászlók!$A$20=1,'NKFIA-havi'!$B24,'NKFIA-havi'!$A24) -> Money transfers to fund management
B34: =+IF(zászlók!$A$20=1,'NKFIA-havi'!$B14,'NKFIA-havi'!$A14) -> Incomes of special settlements | H34: =+IF(zászlók!$A$20=1,'NKFIA-havi'!$B25,'NKFIA-havi'!$A25) -> Cost of Missions
B35: =+IF(zászlók!$A$20=1,'NKFIA-havi'!$B15,'NKFIA-havi'!$A15) -> Total revenues | H35: =+IF(zászlók!$A$20=1,'NKFIA-havi'!$B26,'NKFIA-havi'!$A26) -> Subtotal
H36: =+IF(zászlók!$A$20=1,'NKFIA-havi'!$B27,'NKFIA-havi'!$A27) -> Expenditures of special arrangements
H37: =+IF(zászlók!$A$20=1,'NKFIA-havi'!$B28,'NKFIA-havi'!$A28) -> Total expenditures
C65: 26. jan. | D65: febr. | E65: márc. | F65: ápr. | G65: máj. | H65: jún. | I65: júl. | J65: aug. | K65: szept. | L65: okt. | M65: nov. | N65: dec.
C66: 26. Jan | D66: Febr | E66: March | F66: April | G66: May | H66: June | I66: July | J66: August | K66: Sept | L66: Oct | M66: Nov | N66: Dec
C67: =+IF(zászlók!$A$20=1,C65,C66) -> 26. Jan | D67: =+IF(zászlók!$A$20=1,D65,D66) -> Febr | E67: =+IF(zászlók!$A$20=1,E65,E66) -> March | F67: =+IF(zászlók!$A$20=1,F65,F66) -> April | G67: =+IF(zászlók!$A$20=1,G65,G66) -> May | H67: =+IF(zászlók!$A$20=1,H65,H66) -> June | I67: =+IF(zászlók!$A$20=1,I65,I66) -> July | J67: =+IF(zászlók!$A$20=1,J65,J66) -> August | K67: =+IF(zászlók!$A$20=1,K65,K66) -> Sept | L67: =+IF(zászlók!$A$20=1,L65,L66) -> Oct | M67: =+IF(zászlók!$A$20=1,M65,M66) -> Nov | N67: =+IF(zászlók!$A$20=1,N65,N66) -> Dec
B68: =+INDEX($B$74:$B$75,$E$29,1) -> monthly facts (Million HUF) | C68: =+INDEX($C$74:$N$75,$E$29,C$70) -> 1984-03-02T16:45:15.581 | D68: 1913-06-29T05:01:21.360 | E68: 1906-04-17T06:24:45.648 | F68: 1992-01-16T00:21:10.771 | G68: 1913-11-11T23:16:53.616
B69: =+INDEX($B$79:$B$80,$E$29,1) -> monthly facts (Million HUF) | C69: =+INDEX($C$79:$N$80,$E$29,C70) -> 1976-04-21T12:26:24.490 | D69: 1938-12-07T18:02:28.176 | E69: 1946-12-05T11:04:39.475 | F69: 1938-05-04T08:31:52.954 | G69: 1901-06-19T17:47:00.672
C70: 1900-01-01 | D70: 1900-01-02 | E70: 1900-01-03 | F70: 1900-01-04 | G70: 1900-01-05 | H70: 1900-01-06 | I70: 1900-01-07 | J70: 1900-01-08 | K70: 1900-01-09 | L70: 1900-01-10 | M70: 1900-01-11 | N70: 1900-01-12
B72: bevételek
B74: =IF(zászlók!$A$20=1,"havi teljesítés (millió Ft)","monthly facts (Million HUF)") -> monthly facts (Million HUF) | C74: =+INDEX('NKFIA-havi'!$F$10:$Q$15,$B$29,C$70) -> 30743.6981 | D74: =+INDEX('NKFIA-havi'!$F$10:$Q$15,$B$29,D$70) -> 4929.209275 | E74: =+INDEX('NKFIA-havi'!$F$10:$Q$15,$B$29,E$70) -> 2299.267195 | F74: =+INDEX('NKFIA-havi'!$F$10:$Q$15,$B$29,F$70) -> 33619.01471 | G74: =+INDEX('NKFIA-havi'!$F$10:$Q$15,$B$29,G$70) -> 5064.970065 | H74: =+INDEX('NKFIA-havi'!$F$10:$Q$15,$B$29,H$70) ->  | I74: =+INDEX('NKFIA-havi'!$F$10:$Q$15,$B$29,I$70) ->  | J74: =+INDEX('NKFIA-havi'!$F$10:$Q$15,$B$29,J$70) ->  | K74: =+INDEX('NKFIA-havi'!$F$10:$Q$15,$B$29,K$70) ->  | L74: =+INDEX('NKFIA-havi'!$F$10:$Q$15,$B$29,L$70) ->  | M74: =+INDEX('NKFIA-havi'!$F$10:$Q$15,$B$29,M$70) ->  | N74: =+INDEX('NKFIA-havi'!$F$10:$Q$15,$B$29,N$70) ->  | O74: 0
B75: =IF(zászlók!$A$20=1,"teljesítési arány (%)","rate of facts (%)") -> rate of facts (%) | C75: =+INDEX('NKFIA-teljarány'!$C$10:$N$15,$B$29,C$70) -> 17.25235583 | D75: =+INDEX('NKFIA-teljarány'!$C$10:$N$15,$B$29,D$70) -> 2.766110704 | E75: =+INDEX('NKFIA-teljarány'!$C$10:$N$15,$B$29,E$70) -> 1.290273398 | F75: =+INDEX('NKFIA-teljarány'!$C$10:$N$15,$B$29,F$70) -> 18.86588929 | G75: =+INDEX('NKFIA-teljarány'!$C$10:$N$15,$B$29,G$70) -> 2.84229521 | H75: =+INDEX('NKFIA-teljarány'!$C$10:$N$15,$B$29,H$70) ->  | I75: =+INDEX('NKFIA-teljarány'!$C$10:$N$15,$B$29,I$70) ->  | J75: =+INDEX('NKFIA-teljarány'!$C$10:$N$15,$B$29,J$70) ->  | K75: =+INDEX('NKFIA-teljarány'!$C$10:$N$15,$B$29,K$70) ->  | L75: =+INDEX('NKFIA-teljarány'!$C$10:$N$15,$B$29,L$70) ->  | M75: =+INDEX('NKFIA-teljarány'!$C$10:$N$15,$B$29,M$70) ->  | N75: =+INDEX('NKFIA-teljarány'!$C$10:$N$15,$B$29,N$70) -> 
B77: kiadások
B79: =IF(zászlók!$A$20=1,"havi teljesítés (millió Ft)","monthly facts (Million HUF)") -> monthly facts (Million HUF) | C79: =+INDEX('NKFIA-havi'!$F$21:$Q$28,$H$29,C$70) -> 27871.51834 | D79: =+INDEX('NKFIA-havi'!$F$21:$Q$28,$H$29,D$70) -> 14221.75171 | E79: =+INDEX('NKFIA-havi'!$F$21:$Q$28,$H$29,E$70) -> 17141.46157 | F79: =+INDEX('NKFIA-havi'!$F$21:$Q$28,$H$29,F$70) -> 14004.35547 | G79: =+INDEX('NKFIA-havi'!$F$21:$Q$28,$H$29,G$70) -> 536.74098 | H79: =+INDEX('NKFIA-havi'!$F$21:$Q$28,$H$29,H$70) ->  | I79: =+INDEX('NKFIA-havi'!$F$21:$Q$28,$H$29,I$70) ->  | J79: =+INDEX('NKFIA-havi'!$F$21:$Q$28,$H$29,J$70) ->  | K79: =+INDEX('NKFIA-havi'!$F$21:$Q$28,$H$29,K$70) ->  | L79: =+INDEX('NKFIA-havi'!$F$21:$Q$28,$H$29,L$70) ->  | M79: =+INDEX('NKFIA-havi'!$F$21:$Q$28,$H$29,M$70) ->  | N79: =+INDEX('NKFIA-havi'!$F$21:$Q$28,$H$29,N$70) ->  | O79: 0
B80: =IF(zászlók!$A$20=1,"teljesítési arány (%)","rate of facts (%)") -> rate of facts (%) | C80: =+INDEX('NKFIA-teljarány'!$C$21:$N$28,$H$29,C$70) -> 19.19526056 | D80: =+INDEX('NKFIA-teljarány'!$C$21:$N$28,$H$29,D$70) -> 9.794594845 | E80: =+INDEX('NKFIA-teljarány'!$C$21:$N$28,$H$29,E$70) -> 11.8054143 | F80: =+INDEX('NKFIA-teljarány'!$C$21:$N$28,$H$29,F$70) -> 9.644872916 | G80: =+INDEX('NKFIA-teljarány'!$C$21:$N$28,$H$29,G$70) -> 0.3696563223 | H80: =+INDEX('NKFIA-teljarány'!$C$21:$N$28,$H$29,H$70) ->  | I80: =+INDEX('NKFIA-teljarány'!$C$21:$N$28,$H$29,I$70) ->  | J80: =+INDEX('NKFIA-teljarány'!$C$21:$N$28,$H$29,J$70) ->  | K80: =+INDEX('NKFIA-teljarány'!$C$21:$N$28,$H$29,K$70) ->  | L80: =+INDEX('NKFIA-teljarány'!$C$21:$N$28,$H$29,L$70) ->  | M80: =+INDEX('NKFIA-teljarány'!$C$21:$N$28,$H$29,M$70) ->  | N80: =+INDEX('NKFIA-teljarány'!$C$21:$N$28,$H$29,N$70) -> 

Sheet ábra-NKA
B1: Nemzeti Kulturális Alap
B2: National Cultural Fund
D17: =+IF(zászlók!$A$20=1,"Adat jellege:","type of data") -> type of data
B29: 7 | E29: 1 | H29: 6
B30: =IF(zászlók!$A$20=1,'NKA-havi'!B10,'NKA-havi'!A10) -> Other incomes | E30: =IF(zászlók!$A$20=1,"havi teljesítés (millió Ft)","monthly facts (Million HUF)") -> monthly facts (Million HUF) | H30: =IF(zászlók!$A$20=1,'NKA-havi'!$B22,'NKA-havi'!$A22) -> Subsidy to the creation, care, spreading of national and universal values
B31: =IF(zászlók!$A$20=1,'NKA-havi'!B11,'NKA-havi'!A11) -> Gamble tax entitled to NCF | E31: =IF(zászlók!$A$20=1,"teljesítési arány (%)","rate of facts (%)") -> rate of facts (%) | H31: =IF(zászlók!$A$20=1,'NKA-havi'!$B23,'NKA-havi'!$A23) -> Operational expenditures
B32: =IF(zászlók!$A$20=1,'NKA-havi'!B12,'NKA-havi'!A12) -> Payments required by the law on copyright | H32: =IF(zászlók!$A$20=1,'NKA-havi'!$B24,'NKA-havi'!$A24) -> Subsidies for central organisations with cultural purposes
B33: =IF(zászlók!$A$20=1,'NKA-havi'!B13,'NKA-havi'!A13) -> Subtotal | H33: =IF(zászlók!$A$20=1,'NKA-havi'!$B25,'NKA-havi'!$A25) -> Subtotal
B34: =IF(zászlók!$A$20=1,'NKA-havi'!B14,'NKA-havi'!A14) -> Financial income | H34: =IF(zászlók!$A$20=1,'NKA-havi'!$B26,'NKA-havi'!$A26) -> Expenditures of special settlements
B35: =IF(zászlók!$A$20=1,'NKA-havi'!B15,'NKA-havi'!A15) -> Incomes of special settlements | H35: =IF(zászlók!$A$20=1,'NKA-havi'!$B27,'NKA-havi'!$A27) -> Total expenditures
B36: =IF(zászlók!$A$20=1,'NKA-havi'!B16,'NKA-havi'!A16) -> Total revenues
B37: =IF(zászlók!$A$20=1,'NKA-havi'!B17,'NKA-havi'!A17) -> 0
H43: =IF(zászlók!$A$20=1,'NKA-havi'!$B25,'NKA-havi'!$A26) -> Expenditures of special settlements
H44: =IF(zászlók!$A$20=1,'NKA-havi'!$B26,'NKA-havi'!$A27) -> Total expenditures
H45: =IF(zászlók!$A$20=1,'NKA-havi'!$B27,'NKA-havi'!$A28) -> 0
C65: 26. jan. | D65: febr. | E65: márc. | F65: ápr. | G65: máj. | H65: jún. | I65: júl. | J65: aug. | K65: szept. | L65: okt. | M65: nov. | N65: dec.
C66: 26. Jan | D66: Febr | E66: March | F66: April | G66: May | H66: June | I66: July | J66: August | K66: Sept | L66: Oct | M66: Nov | N66: Dec
C67: =+IF(zászlók!$A$20=1,C65,C66) -> 26. Jan | D67: =+IF(zászlók!$A$20=1,D65,D66) -> Febr | E67: =+IF(zászlók!$A$20=1,E65,E66) -> March | F67: =+IF(zászlók!$A$20=1,F65,F66) -> April | G67: =+IF(zászlók!$A$20=1,G65,G66) -> May | H67: =+IF(zászlók!$A$20=1,H65,H66) -> June | I67: =+IF(zászlók!$A$20=1,I65,I66) -> July | J67: =+IF(zászlók!$A$20=1,J65,J66) -> August | K67: =+IF(zászlók!$A$20=1,K65,K66) -> Sept | L67: =+IF(zászlók!$A$20=1,L65,L66) -> Oct | M67: =+IF(zászlók!$A$20=1,M65,M66) -> Nov | N67: =+IF(zászlók!$A$20=1,N65,N66) -> Dec
B68: =+INDEX($B$74:$B$75,$E$29,1) -> monthly facts (Million HUF) | C68: =+INDEX($C$74:$N$75,$E$29,C$70) -> 738.239547 | D68: 16.367916 | E68: 3489.826604 | F68: 1604.539431 | G68: 2301.920378
B69: =+INDEX($B$79:$B$80,$E$29,1) -> monthly facts (Million HUF) | C69: =+INDEX($C$79:$N$80,$E$29,C70) -> 690.211242 | D69: 6070.019495 | E69: 3323.648455 | F69: 3158.935001 | G69: -302.685447
C70: 1 | D70: 2 | E70: 3 | F70: 4 | G70: 5 | H70: 6 | I70: 7 | J70: 8 | K70: 9 | L70: 10 | M70: 11 | N70: 12
B72: bevételek
B74: =IF(zászlók!$A$20=1,"havi teljesítés (millió Ft)","monthly facts (Million HUF)") -> monthly facts (Million HUF) | C74: =+INDEX('NKA-havi'!$F$10:$Q$16,$B$29,C$70) -> 738.239547 | D74: =+INDEX('NKA-havi'!$F$10:$Q$16,$B$29,D$70) -> 16.367916 | E74: =+INDEX('NKA-havi'!$F$10:$Q$16,$B$29,E$70) -> 3489.826604 | F74: =+INDEX('NKA-havi'!$F$10:$Q$16,$B$29,F$70) -> 1604.539431 | G74: =+INDEX('NKA-havi'!$F$10:$Q$16,$B$29,G$70) -> 2301.920378 | H74: =+INDEX('NKA-havi'!$F$10:$Q$16,$B$29,H$70) ->  | I74: =+INDEX('NKA-havi'!$F$10:$Q$16,$B$29,I$70) ->  | J74: =+INDEX('NKA-havi'!$F$10:$Q$16,$B$29,J$70) ->  | K74: =+INDEX('NKA-havi'!$F$10:$Q$16,$B$29,K$70) ->  | L74: =+INDEX('NKA-havi'!$F$10:$Q$16,$B$29,L$70) ->  | M74: =+INDEX('NKA-havi'!$F$10:$Q$16,$B$29,M$70) ->  | N74: =+INDEX('NKA-havi'!$F$10:$Q$16,$B$29,N$70) -> 
B75: =IF(zászlók!$A$20=1,"teljesítési arány (%)","rate of facts (%)") -> rate of facts (%) | C75: =+INDEX('NKA-teljarány'!$C$10:$N$16,$B$29,C$70) -> 3.109520941 | D75: =+INDEX('NKA-teljarány'!$C$10:$N$16,$B$29,D$70) -> 0.06894290311 | E75: =+INDEX('NKA-teljarány'!$C$10:$N$16,$B$29,E$70) -> 14.69941423 | F75: =+INDEX('NKA-teljarány'!$C$10:$N$16,$B$29,F$70) -> 6.75844173 | G75: =+INDEX('NKA-teljarány'!$C$10:$N$16,$B$29,G$70) -> 9.695863151 | H75: =+INDEX('NKA-teljarány'!$C$10:$N$16,$B$29,H$70) ->  | I75: =+INDEX('NKA-teljarány'!$C$10:$N$16,$B$29,I$70) ->  | J75: =+INDEX('NKA-teljarány'!$C$10:$N$16,$B$29,J$70) ->  | K75: =+INDEX('NKA-teljarány'!$C$10:$N$16,$B$29,K$70) ->  | L75: =+INDEX('NKA-teljarány'!$C$10:$N$16,$B$29,L$70) ->  | M75: =+INDEX('NKA-teljarány'!$C$10:$N$16,$B$29,M$70) ->  | N75: =+INDEX('NKA-teljarány'!$C$10:$N$16,$B$29,N$70) -> 
B77: kiadások
B79: =IF(zászlók!$A$20=1,"havi teljesítés (millió Ft)","monthly facts (Million HUF)") -> monthly facts (Million HUF) | C79: =+INDEX('NKA-havi'!$F$22:$Q$33,$H$29,C$70) -> 690.211242 | D79: =+INDEX('NKA-havi'!$F$22:$Q$33,$H$29,D$70) -> 6070.019495 | E79: =+INDEX('NKA-havi'!$F$22:$Q$33,$H$29,E$70) -> 3323.648455 | F79: =+INDEX('NKA-havi'!$F$22:$Q$33,$H$29,F$70) -> 3158.935001 | G79: =+INDEX('NKA-havi'!$F$22:$Q$33,$H$29,G$70) -> -302.685447 | H79: =+INDEX('NKA-havi'!$F$22:$Q$33,$H$29,H$70) ->  | I79: =+INDEX('NKA-havi'!$F$22:$Q$33,$H$29,I$70) ->  | J79: =+INDEX('NKA-havi'!$F$22:$Q$33,$H$29,J$70) ->  | K79: =+INDEX('NKA-havi'!$F$22:$Q$33,$H$29,K$70) ->  | L79: =+INDEX('NKA-havi'!$F$22:$Q$33,$H$29,L$70) ->  | M79: =+INDEX('NKA-havi'!$F$22:$Q$33,$H$29,M$70) ->  | N79: =+INDEX('NKA-havi'!$F$22:$Q$33,$H$29,N$70) -> 
B80: =IF(zászlók!$A$20=1,"teljesítési arány (%)","rate of facts (%)") -> rate of facts (%) | C80: =+INDEX('NKA-teljarány'!$C$22:$N$32,$H$29,C$70) -> 2.907222079 | D80: =+INDEX('NKA-teljarány'!$C$22:$N$32,$H$29,D$70) -> 25.56738231 | E80: =+INDEX('NKA-teljarány'!$C$22:$N$32,$H$29,E$70) -> 13.99945927 | F80: =+INDEX('NKA-teljarány'!$C$22:$N$32,$H$29,F$70) -> 13.30567372 | G80: =+INDEX('NKA-teljarány'!$C$22:$N$32,$H$29,G$70) -> -1.274934051 | H80: =+INDEX('NKA-teljarány'!$C$22:$N$32,$H$29,H$70) ->  | I80: =+INDEX('NKA-teljarány'!$C$22:$N$32,$H$29,I$70) ->  | J80: =+INDEX('NKA-teljarány'!$C$22:$N$32,$H$29,J$70) ->  | K80: =+INDEX('NKA-teljarány'!$C$22:$N$32,$H$29,K$70) ->  | L80: =+INDEX('NKA-teljarány'!$C$22:$N$32,$H$29,L$70) ->  | M80: =+INDEX('NKA-teljarány'!$C$22:$N$32,$H$29,M$70) ->  | N80: =+INDEX('NKA-teljarány'!$C$22:$N$32,$H$29,N$70) -> 

Sheet ábra-BGA
B1: Bethlen Gábor Alap
B2: Bethlen Gábor Fund
D7: teljesítés %-a* | H7: =+CONCATENATE("teljesítés ",#REF!) ->  | I7: =+D7 -> teljesítés %-a*
D17: =+IF(zászlók!$A$20=1,"Adat jellege:","type of data") -> type of data
B29: 6 | E29: 1 | H29: 14
B30: =IF(zászlók!$A$20=1,'BGA-havi'!$B10,'BGA-havi'!$A10) -> Budgetary subsidy | E30: =IF(zászlók!$A$20=1,"havi teljesítés (millió Ft)","monthly facts (Million HUF)") -> monthly facts (Million HUF) | H30: =IF(zászlók!$A$20=1,'BGA-havi'!$B21,'BGA-havi'!$A21) -> Grants for National Policy
B31: =IF(zászlók!$A$20=1,'BGA-havi'!$B11,'BGA-havi'!$A11) -> Other income | E31: =IF(zászlók!$A$20=1,"teljesítési arány (%)","rate of facts (%)") -> rate of facts (%) | H31: =IF(zászlók!$A$20=1,'BGA-havi'!$B22,'BGA-havi'!$A22) -> - 'In hungarian in the homeland' program
B32: =IF(zászlók!$A$20=1,'BGA-havi'!$B12,'BGA-havi'!$A12) -> Subtotal | H32: =IF(zászlók!$A$20=1,'BGA-havi'!$B23,'BGA-havi'!$A23) -> - Social benefits
B33: =IF(zászlók!$A$20=1,'BGA-havi'!$B13,'BGA-havi'!$A13) -> Financial incomes | H33: =IF(zászlók!$A$20=1,'BGA-havi'!$B24,'BGA-havi'!$A24) -> - Subsidies based on a tender procedure
B34: =IF(zászlók!$A$20=1,'BGA-havi'!$B14,'BGA-havi'!$A14) -> Income of special settlements | H34: =IF(zászlók!$A$20=1,'BGA-havi'!$B25,'BGA-havi'!$A25) -> - Subsidies provided to institutions of national importance and other organizations
B35: =IF(zászlók!$A$20=1,'BGA-havi'!$B15,'BGA-havi'!$A15) -> Total incomes | H35: =IF(zászlók!$A$20=1,'BGA-havi'!$B26,'BGA-havi'!$A26) -> Operational costs of the fund management
H36: =IF(zászlók!$A$20=1,'BGA-havi'!$B27,'BGA-havi'!$A27) -> Subsidies to the Rákóczi Association
H37: =IF(zászlók!$A$20=1,'BGA-havi'!$B28,'BGA-havi'!$A28) -> Subsidies to Thematic Programs
H38: =IF(zászlók!$A$20=1,'BGA-havi'!$B29,'BGA-havi'!$A29) -> Subsidies to the programme of the 'Hungarians' House'
H39: =IF(zászlók!$A$20=1,'BGA-havi'!$B30,'BGA-havi'!$A30) -> Subsidies to the programme of the Without Borders
H40: =IF(zászlók!$A$20=1,'BGA-havi'!$B31,'BGA-havi'!$A31) -> Other expenditures
H41: =IF(zászlók!$A$20=1,'BGA-havi'!$B32,'BGA-havi'!$A32) -> Subtotal
H42: =IF(zászlók!$A$20=1,'BGA-havi'!$B33,'BGA-havi'!$A33) -> Expenditure of special settlements
H43: =IF(zászlók!$A$20=1,'BGA-havi'!$B34,'BGA-havi'!$A34) -> Total expenditures
C65: 26. jan. | D65: febr. | E65: márc. | F65: ápr. | G65: máj. | H65: jún. | I65: júl. | J65: aug. | K65: szept. | L65: okt. | M65: nov. | N65: dec.
C66: 26. Jan | D66: Febr | E66: March | F66: April | G66: May | H66: June | I66: July | J66: August | K66: Sept | L66: Oct | M66: Nov | N66: Dec
C67: =+IF(zászlók!$A$20=1,C65,C66) -> 26. Jan | D67: =+IF(zászlók!$A$20=1,D65,D66) -> Febr | E67: =+IF(zászlók!$A$20=1,E65,E66) -> March | F67: =+IF(zászlók!$A$20=1,F65,F66) -> April | G67: =+IF(zászlók!$A$20=1,G65,G66) -> May | H67: =+IF(zászlók!$A$20=1,H65,H66) -> June | I67: =+IF(zászlók!$A$20=1,I65,I66) -> July | J67: =+IF(zászlók!$A$20=1,J65,J66) -> August | K67: =+IF(zászlók!$A$20=1,K65,K66) -> Sept | L67: =+IF(zászlók!$A$20=1,L65,L66) -> Oct | M67: =+IF(zászlók!$A$20=1,M65,M66) -> Nov | N67: =+IF(zászlók!$A$20=1,N65,N66) -> Dec
B68: =+INDEX($B$74:$B$75,$E$29,1) -> monthly facts (Million HUF) | C68: =+INDEX($C$74:$N$75,$E$29,C$70) -> 9990.401986 | D68: =+INDEX($C$74:$N$75,$E$29,D$70) -> 6053.89934 | E68: 17700.61004 | F68: 19172.94719 | G68: 10843.90067
B69: =+INDEX($B$79:$B$80,$E$29,1) -> monthly facts (Million HUF) | C69: =+INDEX($C$79:$N$80,$E$29,C$70) -> 14.157264 | D69: =+INDEX($C$79:$N$80,$E$29,D$70) -> 10693.44477 | E69: =+INDEX($C$79:$N$80,$E$29,E$70) -> 21516.76626 | F69: 8764.908662 | G69: 768.91918
C70: 1 | D70: 2 | E70: 3 | F70: 4 | G70: 5 | H70: 6 | I70: 7 | J70: 8 | K70: 9 | L70: 10 | M70: 11 | N70: 12
B72: bevételek
B74: =IF(zászlók!$A$20=1,"havi teljesítés (millió Ft)","monthly facts (Million HUF)") -> monthly facts (Million HUF) | C74: =+INDEX('BGA-havi'!$F$10:$Q$15,$B$29,C$70) -> 9990.401986 | D74: =+INDEX('BGA-havi'!$F$10:$Q$15,$B$29,D$70) -> 6053.89934 | E74: =+INDEX('BGA-havi'!$F$10:$Q$15,$B$29,E$70) -> 17700.61004 | F74: =+INDEX('BGA-havi'!$F$10:$Q$15,$B$29,F$70) -> 19172.94719 | G74: =+INDEX('BGA-havi'!$F$10:$Q$15,$B$29,G$70) -> 10843.90067 | H74: =+INDEX('BGA-havi'!$F$10:$Q$15,$B$29,H$70) ->  | I74: =+INDEX('BGA-havi'!$F$10:$Q$15,$B$29,I$70) ->  | J74: =+INDEX('BGA-havi'!$F$10:$Q$15,$B$29,J$70) ->  | K74: =+INDEX('BGA-havi'!$F$10:$Q$15,$B$29,K$70) ->  | L74: =+INDEX('BGA-havi'!$F$10:$Q$15,$B$29,L$70) ->  | M74: =+INDEX('BGA-havi'!$F$10:$Q$15,$B$29,M$70) ->  | N74: =+INDEX('BGA-havi'!$F$10:$Q$15,$B$29,N$70) -> 
B75: =IF(zászlók!$A$20=1,"teljesítési arány (%)","rate of facts (%)") -> rate of facts (%) | C75: =+INDEX('BGA-teljarány'!$C$10:$N$15,'ábra-BGA'!$B$29,'ábra-BGA'!C$70) -> 11.67296608 | D75: =+INDEX('BGA-teljarány'!$C$10:$N$15,'ábra-BGA'!$B$29,'ábra-BGA'!D$70) -> 7.073485305 | E75: =+INDEX('BGA-teljarány'!$C$10:$N$15,'ábra-BGA'!$B$29,'ábra-BGA'!E$70) -> 20.68171239 | F75: =+INDEX('BGA-teljarány'!$C$10:$N$15,'ábra-BGA'!$B$29,'ábra-BGA'!F$70) -> 22.4020177 | G75: =+INDEX('BGA-teljarány'!$C$10:$N$15,'ábra-BGA'!$B$29,'ábra-BGA'!G$70) -> 12.67020936 | H75: =+INDEX('BGA-teljarány'!$C$10:$N$15,'ábra-BGA'!$B$29,'ábra-BGA'!H$70) ->  | I75: =+INDEX('BGA-teljarány'!$C$10:$N$15,'ábra-BGA'!$B$29,'ábra-BGA'!I$70) ->  | J75: =+INDEX('BGA-teljarány'!$C$10:$N$15,'ábra-BGA'!$B$29,'ábra-BGA'!J$70) ->  | K75: =+INDEX('BGA-teljarány'!$C$10:$N$15,'ábra-BGA'!$B$29,'ábra-BGA'!K$70) ->  | L75: =+INDEX('BGA-teljarány'!$C$10:$N$15,'ábra-BGA'!$B$29,'ábra-BGA'!L$70) ->  | M75: =+INDEX('BGA-teljarány'!$C$10:$N$15,'ábra-BGA'!$B$29,'ábra-BGA'!M$70) ->  | N75: =+INDEX('BGA-teljarány'!$C$10:$N$15,'ábra-BGA'!$B$29,'ábra-BGA'!N$70) -> 
B77: kiadások
B79: =IF(zászlók!$A$20=1,"havi teljesítés (millió Ft)","monthly facts (Million HUF)") -> monthly facts (Million HUF) | C79: =+INDEX('BGA-havi'!$F$21:$Q$34,$H$29,C$70) -> 14.157264 | D79: =+INDEX('BGA-havi'!$F$21:$Q$34,$H$29,D$70) -> 10693.44477 | E79: =+INDEX('BGA-havi'!$F$21:$Q$34,$H$29,E$70) -> 21516.76626 | F79: =+INDEX('BGA-havi'!$F$21:$Q$34,$H$29,F$70) -> 8764.908662 | G79: =+INDEX('BGA-havi'!$F$21:$Q$34,$H$29,G$70) -> 768.91918 | H79: =+INDEX('BGA-havi'!$F$21:$Q$34,$H$29,H$70) ->  | I79: =+INDEX('BGA-havi'!$F$21:$Q$34,$H$29,I$70) ->  | J79: =+INDEX('BGA-havi'!$F$21:$Q$34,$H$29,J$70) ->  | K79: =+INDEX('BGA-havi'!$F$21:$Q$34,$H$29,K$70) ->  | L79: =+INDEX('BGA-havi'!$F$21:$Q$34,$H$29,L$70) ->  | M79: =+INDEX('BGA-havi'!$F$21:$Q$34,$H$29,M$70) ->  | N79: =+INDEX('BGA-havi'!$F$21:$Q$34,$H$29,N$70) -> 
B80: =IF(zászlók!$A$20=1,"teljesítési arány (%)","rate of facts (%)") -> rate of facts (%) | C80: =+INDEX('BGA-teljarány'!$C$21:$N$234,$H$29,C$70) -> 0.0165416029 | D80: =+INDEX('BGA-teljarány'!$C$21:$N$234,$H$29,D$70) -> 12.49441396 | E80: =+INDEX('BGA-teljarány'!$C$21:$N$234,$H$29,E$70) -> 25.14057822 | F80: =+INDEX('BGA-teljarány'!$C$21:$N$234,$H$29,F$70) -> 10.24107755 | G80: =+INDEX('BGA-teljarány'!$C$21:$N$234,$H$29,G$70) -> 0.8984190543 | H80: =+INDEX('BGA-teljarány'!$C$21:$N$234,$H$29,H$70) ->  | I80: =+INDEX('BGA-teljarány'!$C$21:$N$234,$H$29,I$70) ->  | J80: =+INDEX('BGA-teljarány'!$C$21:$N$234,$H$29,J$70) ->  | K80: =+INDEX('BGA-teljarány'!$C$21:$N$234,$H$29,K$70) ->  | L80: =+INDEX('BGA-teljarány'!$C$21:$N$234,$H$29,L$70) ->  | M80: =+INDEX('BGA-teljarány'!$C$21:$N$234,$H$29,M$70) ->  | N80: =+INDEX('BGA-teljarány'!$C$21:$N$234,$H$29,N$70) -> 
